{"text_format":"1","workbook":"xlsx","n_sheets":6,"sheets":["Notice","Pronostics","Stats par Sports","Stats par Tipsters","Stats par Bookmaker","Evolution de la BK"],"not_rendered":{"charts":2,"images":0,"macros":1,"external_links":1,"defined_names":66,"comments":2,"pivot_tables":3},"unopened":[{"sheet":"Evolution de la BK","index":5,"reason":"not_a_worksheet"}],"bounds":{"document_bytes":16777216,"sheet_cells":100000,"rows_first":2000,"rows_last":500,"rows_between":2000,"halvings":0,"cell_chars":16384,"cell_head_chars":4096},"cells_cut":0,"cells_raw":0,"read":"whole","date_system":"1900"}

{"sheet":"Notice","index":0,"n_rows":10,"n_cols":11,"rows_kept":10,"cut":false,"hidden":false,"merged":[[0,1,0,2]]}
["ETAPE 1 :","Indiquez votre BK :"]
["ETAPE 2 :","Notez vos pronostics dans la feuille \"Pronostics\" en bleu en suivant cet exemple"]
[]
["Date","Bookmaker","Sport","Equipe 1","Equipe 2","Pronostic","d","Tipster","Cote","Mise","Résultat"]
["2015-01-01","ZeBet","Football","Bordeaux","Marseille","Bordeaux -3",null,"Orny",5,250,"G"]
[]
["ETAPE 3 :","Cliquez sur le bouton \"Mise à jour des stats\" de la feuille \"Pronostics\" en bleu"]
["ETAPE 4 :","Baladez vous dans les onglets des différentes stats et d'évolution de BK"]
["ETAPE 5 :","Partagez vos stats sur les réseaux sociaux pour que la transparence prime par-dessus tout et mettez fin aux VIP opaques "]
["ETAPE 6 :","Venez dire un \"Merci\", ca mange pas de pain et ça fait toujours plaisir"]

{"sheet":"Pronostics","index":1,"n_rows":1532,"n_cols":17,"rows_kept":1532,"cut":false,"hidden":false,"merged":[[3,13,3,14],[3,6,3,12],[3,0,3,5],[9,0,9,3],[9,4,9,11],[9,12,9,14]]}
["RECAP","Janvier","Février","Mars","Avril","Mai","Juin","Juillet","Août","Septembre","Octobre","Novembre","Décembre","Année","RECAP"]
["Gains/pertes",{"$f":"SUMIF($P$12:$P$1532,B1,$L$12:$L$1532)","v":0},0,0,0,0,0,0,0,0,0,0,0,{"$f":"SUM(B2:M2)","v":0},"Gains/pertes"]
["Mises",{"$f":"IF(SUMIF($P$12:$P$1532,B1,$J$12:$J$1532)=0,\"\",SUMIF($P$12:$P$1532,B1,$J$12:$J$1532))","v":""},"","","","","","","","","","","",{"$f":"SUM(B3:M3)","v":0},"Mises"]
["Crée et offert par @Orny33 ||| orny33@igamblingfrance.com",null,null,null,null,null,"http://www.igamblingfrance.com",null,null,null,null,null,null,"<-- Crédit"]
["R.O.I",{"$f":"IF(B3=\"\",\"\",B2/B3)","v":""},{"$f":"IF(C3=\"\",\"\",C2/C3)","v":""},"","","","","","",{"$f":"IF(J3=\"\",\"\",J2/J3)","v":""},{"$f":"IF(K3=\"\",\"\",K2/K3)","v":""},{"$f":"IF(L3=\"\",\"\",L2/L3)","v":""},{"$f":"IF(M3=\"\",\"\",M2/M3)","v":""},{"$f":"N2/N3","v":{"$error":"#DIV/0!"}},"R.O.I"]
["Nb de pronos",{"$f":"IF(COUNTIF($P$12:$P$1532,B1)=0,\"\",COUNTIF($P$12:$P$1532,B1))","v":""},"","","","","","","","","","","",{"$f":"SUM(B6:M6)","v":0},"Nb de pronos",null,"BK de départ"]
["Mise moyenne",{"$f":"IF(B6=\"\",\"\",B3/B6)","v":""},"","","","","","","","","","","",{"$error":"#DIV/0!"},"Mise moy.",null,{"$f":"Notice!D1","v":0}]
["Gagnés",{"$f":"SUM(IF(($O$12:$O$1532=1)*($K$12:$K$1532=\"G\"),1,0))","v":0},{"$f":"SUM(IF(($O$12:$O$1532=2)*($K$12:$K$1532=\"G\"),1,0))","v":0},{"$f":"SUM(IF(($O$12:$O$1532=3)*($K$12:$K$1532=\"G\"),1,0))","v":0},{"$f":"SUM(IF(($O$12:$O$1532=4)*($K$12:$K$1532=\"G\"),1,0))","v":0},{"$f":"SUM(IF(($O$12:$O$1532=5)*($K$12:$K$1532=\"G\"),1,0))","v":0},{"$f":"SUM(IF(($O$12:$O$1532=6)*($K$12:$K$1532=\"G\"),1,0))","v":0},{"$f":"SUM(IF(($O$12:$O$1532=7)*($K$12:$K$1532=\"G\"),1,0))","v":0},{"$f":"SUM(IF(($O$12:$O$1532=8)*($K$12:$K$1532=\"G\"),1,0))","v":0},{"$f":"SUM(IF(($O$12:$O$1532=9)*($K$12:$K$1532=\"G\"),1,0))","v":0},{"$f":"SUM(IF(($O$12:$O$1532=10)*($K$12:$K$1532=\"G\"),1,0))","v":0},{"$f":"SUM(IF(($O$12:$O$1532=11)*($K$12:$K$1532=\"G\"),1,0))","v":0},{"$f":"SUM(IF(($O$12:$O$1532=12)*($K$12:$K$1532=\"G\"),1,0))","v":0},{"$f":"SUM(B8:M8)","v":0},"Gagnés"]
["% réussite",{"$f":"IF(B6=\"\",\"\",B8/B6)","v":""},{"$f":"IF(C6=\"\",\"\",C8/C6)","v":""},"","","","","","",{"$f":"IF(J6=\"\",\"\",J8/J6)","v":""},{"$f":"IF(K6=\"\",\"\",K8/K6)","v":""},{"$f":"IF(L6=\"\",\"\",L8/L6)","v":""},{"$f":"IF(M6=\"\",\"\",M8/M6)","v":""},{"$f":"IF(N6=\"\",\"\",N8/N6)","v":{"$error":"#DIV/0!"}},"% réussite"]
["Guide du parieur sportif débutant",null,null,null,"Des idées de tips sur Betting-Connexion",null,null,null,null,null,null,null,"Forum / FreeTips Freebets paris sportifs"]
["Date","Bookmaker","Sport","Equipe 1","Equipe 2","Pronostic","d","Tipster","Cote","Mise","Résultat","Total","Pronos gagné","Nb de pronos","Mois1","Mois"]
[null,null,null,null,null,null,null,null,null,null,null,{"$f":"IF(K12=\"G\",I12*J12-J12,-J12)","v":0},{"$f":"IF(K12=\"\",\"\",IF(K12=\"P\",0,1))","v":""},{"$f":"IF(K12=\"\",\"\",1)","v":""},{"$f":"IF(A12=\"\",\"\",MONTH(A12))","v":""},{"$f":"IF(A12=\"\",\"\",IF(O12=1,\"Janvier\",IF(O12=2,\"Février\",IF(O12=3,\"Mars\",IF(O12=4,\"Avril\",IF(O12=5,\"Mai\",IF(O12=6,\"Juin\",IF(O12=7,\"Juillet\",IF(O12=8,\"Août\",IF(O12=9,\"Septembre\",IF(O12=10,\"Octobre\",IF(O12=11,\"Novembre\",IF(O12=12,\"Décembre\",\"PB\")))))))))))))","v":""},{"$f":"Q7+L12","v":0}]
[null,null,null,null,null,null,null,null,null,null,null,{"$f":"IF(K13=\"G\",I13*J13-J13,-J13)","v":0},"","","","",{"$f":"Q12+L13","v":0}]
[null,null,null,null,null,null,null,null,null,null,null,0,"","","","",0]
[null,null,null,null,null,null,null,null,null,null,null,0,"","","","",0]
[null,null,null,null,null,null,null,null,null,null,null,0,"","","","",0]
[null,null,null,null,null,null,null,null,null,null,null,0,"","","","",0]
[null,null,null,null,null,null,null,null,null,null,null,0,"","","","",0]
[null,null,null,null,null,null,null,null,null,null,null,0,"","","","",0]
[null,null,null,null,null,null,null,null,null,null,null,0,"","","","",0]
[null,null,null,null,null,null,null,null,null,null,null,0,"","","","",0]
[null,null,null,null,null,null,null,null,null,null,null,0,"","","","",0]
[null,null,null,null,null,null,null,null,null,null,null,0,"","","","",0]
[null,null,null,null,null,null,null,null,null,null,null,0,"","","","",0]
[null,null,null,null,null,null,null,null,null,null,null,0,"","","","",0]
[null,null,null,null,null,null,null,null,null,null,null,0,"","","","",0]
[null,null,null,null,null,null,null,null,null,null,null,0,"","","","",0]
[null,null,null,null,null,null,null,null,null,null,null,0,"","","","",0]
[null,null,null,null,null,null,null,null,null,null,null,0,"","","","",0]
[null,null,null,null,null,null,null,null,null,null,null,0,"","","","",0]
[null,null,null,null,null,null,null,null,null,null,null,0,"","","","",0]
[null,null,null,null,null,null,null,null,null,null,null,0,"","","","",0]
[null,null,null,null,null,null,null,null,null,null,null,0,"","","","",0]
[null,null,null,null,null,null,null,null,null,null,null,0,"","","","",0]
[null,null,null,null,null,null,null,null,null,null,null,0,"","","","",0]
[null,null,null,null,null,null,null,null,null,null,null,0,"","","","",0]
[null,null,null,null,null,null,null,null,null,null,null,0,"","","","",0]
[null,null,null,null,null,null,null,null,null,null,null,0,"","","","",0]
[null,null,null,null,null,null,null,null,null,null,null,0,"","","","",0]
[null,null,null,null,null,null,null,null,null,null,null,0,"","","","",0]
[null,null,null,null,null,null,null,null,null,null,null,0,"","","","",0]
[null,null,null,null,null,null,null,null,null,null,null,0,"","","","",0]
[null,null,null,null,null,null,null,null,null,null,null,0,"","","","",0]
[null,null,null,null,null,null,null,null,null,null,null,0,"","","","",0]
[null,null,null,null,null,null,null,null,null,null,null,0,"","","","",0]
[null,null,null,null,null,null,null,null,null,null,null,0,"","","","",0]
[null,null,null,null,null,null,null,null,null,null,null,0,"","","","",0]
[null,null,null,null,null,null,null,null,null,null,null,0,"","","","",0]
[null,null,null,null,null,null,null,null,null,null,null,0,"","","","",0]
[null,null,null,null,null,null,null,null,null,null,null,0,"","","","",0]
[null,null,null,null,null,null,null,null,null,null,null,0,"","","","",0]
[null,null,null,null,null,null,null,null,null,null,null,0,"","","","",0]
[null,null,null,null,null,null,null,null,null,null,null,0,"","","","",0]
[null,null,null,null,null,null,null,null,null,null,null,0,"","","","",0]
[null,null,null,null,null,null,null,null,null,null,null,0,"","","","",0]
[null,null,null,null,null,null,null,null,null,null,null,0,"","","","",0]
[null,null,null,null,null,null,null,null,null,null,null,0,"","","","",0]
[null,null,null,null,null,null,null,null,null,null,null,0,"","","","",0]
[null,null,null,null,null,null,null,null,null,null,null,0,"","","","",0]
[null,null,null,null,null,null,null,null,null,null,null,0,"","","","",0]
[null,null,null,null,null,null,null,null,null,null,null,0,"","","","",0]
[null,null,null,null,null,null,null,null,null,null,null,0,"","","","",0]
[null,null,null,null,null,null,null,null,null,null,null,0,"","","","",0]
[null,null,null,null,null,null,null,null,null,null,null,0,"","","","",0]
[null,null,null,null,null,null,null,null,null,null,null,0,"","","","",0]
[null,null,null,null,null,null,null,null,null,null,null,0,"","","","",0]
[null,null,null,null,null,null,null,null,null,null,null,0,"","","","",0]
[null,null,null,null,null,null,null,null,null,null,null,0,"","","","",0]
[null,null,null,null,null,null,null,null,null,null,null,0,"","","","",0]
[null,null,null,null,null,null,null,null,null,null,null,0,"","","","",0]
[null,null,null,null,null,null,null,null,null,null,null,0,"","","","",0]
[null,null,null,null,null,null,null,null,null,null,null,0,"","","","",0]
[null,null,null,null,null,null,null,null,null,null,null,0,"","","","",0]
[null,null,null,null,null,null,null,null,null,null,null,0,"","","","",0]
[null,null,null,null,null,null,null,null,null,null,null,0,"","","","",0]
[null,null,null,null,null,null,null,null,null,null,null,0,{"$f":"IF(K76=\"\",\"\",IF(K76=\"P\",0,1))","v":""},{"$f":"IF(K76=\"\",\"\",1)","v":""},{"$f":"IF(A76=\"\",\"\",MONTH(A76))","v":""},{"$f":"IF(A76=\"\",\"\",IF(O76=1,\"Janvier\",IF(O76=2,\"Février\",IF(O76=3,\"Mars\",IF(O76=4,\"Avril\",IF(O76=5,\"Mai\",IF(O76=6,\"Juin\",IF(O76=7,\"Juillet\",IF(O76=8,\"Août\",IF(O76=9,\"Septembre\",IF(O76=10,\"Octobre\",IF(O76=11,\"Novembre\",IF(O76=12,\"Décembre\",\"PB\")))))))))))))","v":""},0]
[null,null,null,null,null,null,null,null,null,null,null,{"$f":"IF(K77=\"G\",I77*J77-J77,-J77)","v":0},"","","","",{"$f":"Q76+L77","v":0}]
[null,null,null,null,null,null,null,null,null,null,null,0,"","","","",0]
[null,null,null,null,null,null,null,null,null,null,null,0,"","","","",0]
[null,null,null,null,null,null,null,null,null,null,null,0,"","","","",0]
[null,null,null,null,null,null,null,null,null,null,null,0,"","","","",0]
[null,null,null,null,null,null,null,null,null,null,null,0,"","","","",0]
[null,null,null,null,null,null,null,null,null,null,null,0,"","","","",0]
[null,null,null,null,null,null,null,null,null,null,null,0,"","","","",0]
[null,null,null,null,null,null,null,null,null,null,null,0,"","","","",0]
[null,null,null,null,null,null,null,null,null,null,null,0,"","","","",0]
[null,null,null,null,null,null,null,null,null,null,null,0,"","","","",0]
[null,null,null,null,null,null,null,null,null,null,null,0,"","","","",0]
[null,null,null,null,null,null,null,null,null,null,null,0,"","","","",0]
[null,null,null,null,null,null,null,null,null,null,null,0,"","","","",0]
[null,null,null,null,null,null,null,null,null,null,null,0,"","","","",0]
[null,null,null,null,null,null,null,null,null,null,null,0,"","","","",0]
[null,null,null,null,null,null,null,null,null,null,null,0,"","","","",0]
[null,null,null,null,null,null,null,null,null,null,null,0,"","","","",0]
[null,null,null,null,null,null,null,null,null,null,null,0,"","","","",0]
[null,null,null,null,null,null,null,null,null,null,null,0,"","","","",0]
[null,null,null,null,null,null,null,null,null,null,null,0,"","","","",0]
[null,null,null,null,null,null,null,null,null,null,null,0,"","","","",0]
[null,null,null,null,null,null,null,null,null,null,null,0,"","","","",0]
[null,null,null,null,null,null,null,null,null,null,null,0,"","","","",0]
[null,null,null,null,null,null,null,null,null,null,null,0,"","","","",0]
[null,null,null,null,null,null,null,null,null,null,null,0,"","","","",0]
[null,null,null,null,null,null,null,null,null,null,null,0,"","","","",0]
[null,null,null,null,null,null,null,null,null,null,null,0,"","","","",0]
[null,null,null,null,null,null,null,null,null,null,null,0,"","","","",0]
[null,null,null,null,null,null,null,null,null,null,null,0,"","","","",0]
[null,null,null,null,null,null,null,null,null,null,null,0,"","","","",0]
[null,null,null,null,null,null,null,null,null,null,null,0,"","","","",0]
[null,null,null,null,null,null,null,null,null,null,null,0,"","","","",0]
[null,null,null,null,null,null,null,null,null,null,null,0,"","","","",0]
[null,null,null,null,null,null,null,null,null,null,null,0,"","","","",0]
[null,null,null,null,null,null,null,null,null,null,null,0,"","","","",0]
[null,null,null,null,null,null,null,null,null,null,null,0,"","","","",0]
[null,null,null,null,null,null,null,null,null,null,null,0,"","","","",0]
[null,null,null,null,null,null,null,null,null,null,null,0,"","","","",0]
[null,null,null,null,null,null,null,null,null,null,null,0,"","","","",0]
[null,null,null,null,null,null,null,null,null,null,null,0,"","","","",0]
[null,null,null,null,null,null,null,null,null,null,null,0,"","","","",0]
[null,null,null,null,null,null,null,null,null,null,null,0,"","","","",0]
[null,null,null,null,null,null,null,null,null,null,null,0,"","","","",0]
[null,null,null,null,null,null,null,null,null,null,null,0,"","","","",0]
[null,null,null,null,null,null,null,null,null,null,null,0,"","","","",0]
[null,null,null,null,null,null,null,null,null,null,null,0,"","","","",0]
[null,null,null,null,null,null,null,null,null,null,null,0,"","","","",0]
[null,null,null,null,null,null,null,null,null,null,null,0,"","","","",0]
[null,null,null,null,null,null,null,null,null,null,null,0,"","","","",0]
[null,null,null,null,null,null,null,null,null,null,null,0,"","","","",0]
[null,null,null,null,null,null,null,null,null,null,null,0,"","","","",0]
[null,null,null,null,null,null,null,null,null,null,null,0,"","","","",0]
[null,null,null,null,null,null,null,null,null,null,null,0,"","","","",0]
[null,null,null,null,null,null,null,null,null,null,null,0,"","","","",0]
[null,null,null,null,null,null,null,null,null,null,null,0,"","","","",0]
[null,null,null,null,null,null,null,null,null,null,null,0,"","","","",0]
[null,null,null,null,null,null,null,null,null,null,null,0,"","","","",0]
[null,null,null,null,null,null,null,null,null,null,null,0,"","","","",0]
[null,null,null,null,null,null,null,null,null,null,null,0,"","","","",0]
[null,null,null,null,null,null,null,null,null,null,null,0,"","","","",0]
[null,null,null,null,null,null,null,null,null,null,null,0,"","","","",0]
[null,null,null,null,null,null,null,null,null,null,null,0,"","","","",0]
[null,null,null,null,null,null,null,null,null,null,null,0,{"$f":"IF(K140=\"\",\"\",IF(K140=\"P\",0,1))","v":""},{"$f":"IF(K140=\"\",\"\",1)","v":""},{"$f":"IF(A140=\"\",\"\",MONTH(A140))","v":""},{"$f":"IF(A140=\"\",\"\",IF(O140=1,\"Janvier\",IF(O140=2,\"Février\",IF(O140=3,\"Mars\",IF(O140=4,\"Avril\",IF(O140=5,\"Mai\",IF(O140=6,\"Juin\",IF(O140=7,\"Juillet\",IF(O140=8,\"Août\",IF(O140=9,\"Septembre\",IF(O140=10,\"Octobre\",IF(O140=11,\"Novembre\",IF(O140=12,\"Décembre\",\"PB\")))))))))))))","v":""},0]
[null,null,null,null,null,null,null,null,null,null,null,{"$f":"IF(K141=\"G\",I141*J141-J141,-J141)","v":0},"","","","",{"$f":"Q140+L141","v":0}]
[null,null,null,null,null,null,null,null,null,null,null,0,"","","","",0]
[null,null,null,null,null,null,null,null,null,null,null,0,"","","","",0]
[null,null,null,null,null,null,null,null,null,null,null,0,"","","","",0]
[null,null,null,null,null,null,null,null,null,null,null,0,"","","","",0]
[null,null,null,null,null,null,null,null,null,null,null,0,"","","","",0]
[null,null,null,null,null,null,null,null,null,null,null,0,"","","","",0]
[null,null,null,null,null,null,null,null,null,null,null,0,"","","","",0]
[null,null,null,null,null,null,null,null,null,null,null,0,"","","","",0]
[null,null,null,null,null,null,null,null,null,null,null,0,"","","","",0]
[null,null,null,null,null,null,null,null,null,null,null,0,"","","","",0]
[null,null,null,null,null,null,null,null,null,null,null,0,"","","","",0]
[null,null,null,null,null,null,null,null,null,null,null,0,"","","","",0]
[null,null,null,null,null,null,null,null,null,null,null,0,"","","","",0]
[null,null,null,null,null,null,null,null,null,null,null,0,"","","","",0]
[null,null,null,null,null,null,null,null,null,null,null,0,"","","","",0]
[null,null,null,null,null,null,null,null,null,null,null,0,"","","","",0]
[null,null,null,null,null,null,null,null,null,null,null,0,"","","","",0]
[null,null,null,null,null,null,null,null,null,null,null,0,"","","","",0]
[null,null,null,null,null,null,null,null,null,null,null,0,"","","","",0]
[null,null,null,null,null,null,null,null,null,null,null,0,"","","","",0]
[null,null,null,null,null,null,null,null,null,null,null,0,"","","","",0]
[null,null,null,null,null,null,null,null,null,null,null,0,"","","","",0]
[null,null,null,null,null,null,null,null,null,null,null,0,"","","","",0]
[null,null,null,null,null,null,null,null,null,null,null,0,"","","","",0]
[null,null,null,null,null,null,null,null,null,null,null,0,"","","","",0]
[null,null,null,null,null,null,null,null,null,null,null,0,"","","","",0]
[null,null,null,null,null,null,null,null,null,null,null,0,"","","","",0]
[null,null,null,null,null,null,null,null,null,null,null,0,"","","","",0]
[null,null,null,null,null,null,null,null,null,null,null,0,"","","","",0]
[null,null,null,null,null,null,null,null,null,null,null,0,"","","","",0]
[null,null,null,null,null,null,null,null,null,null,null,0,"","","","",0]
[null,null,null,null,null,null,null,null,null,null,null,0,"","","","",0]
[null,null,null,null,null,null,null,null,null,null,null,0,"","","","",0]
[null,null,null,null,null,null,null,null,null,null,null,0,"","","","",0]
[null,null,null,null,null,null,null,null,null,null,null,0,"","","","",0]
[null,null,null,null,null,null,null,null,null,null,null,0,"","","","",0]
[null,null,null,null,null,null,null,null,null,null,null,0,"","","","",0]
[null,null,null,null,null,null,null,null,null,null,null,0,"","","","",0]
[null,null,null,null,null,null,null,null,null,null,null,0,"","","","",0]
[null,null,null,null,null,null,null,null,null,null,null,0,"","","","",0]
[null,null,null,null,null,null,null,null,null,null,null,0,"","","","",0]
[null,null,null,null,null,null,null,null,null,null,null,0,"","","","",0]
[null,null,null,null,null,null,null,null,null,null,null,0,"","","","",0]
[null,null,null,null,null,null,null,null,null,null,null,0,"","","","",0]
[null,null,null,null,null,null,null,null,null,null,null,0,"","","","",0]
[null,null,null,null,null,null,null,null,null,null,null,0,"","","","",0]
[null,null,null,null,null,null,null,null,null,null,null,0,"","","","",0]
[null,null,null,null,null,null,null,null,null,null,null,0,"","","","",0]
[null,null,null,null,null,null,null,null,null,null,null,0,"","","","",0]
[null,null,null,null,null,null,null,null,null,null,null,0,"","","","",0]
[null,null,null,null,null,null,null,null,null,null,null,0,"","","","",0]
[null,null,null,null,null,null,null,null,null,null,null,0,"","","","",0]
[null,null,null,null,null,null,null,null,null,null,null,0,"","","","",0]
[null,null,null,null,null,null,null,null,null,null,null,0,"","","","",0]
[null,null,null,null,null,null,null,null,null,null,null,0,"","","","",0]
[null,null,null,null,null,null,null,null,null,null,null,0,"","","","",0]
[null,null,null,null,null,null,null,null,null,null,null,0,"","","","",0]
[null,null,null,null,null,null,null,null,null,null,null,0,"","","","",0]
[null,null,null,null,null,null,null,null,null,null,null,0,"","","","",0]
[null,null,null,null,null,null,null,null,null,null,null,0,"","","","",0]
[null,null,null,null,null,null,null,null,null,null,null,0,"","","","",0]
[null,null,null,null,null,null,null,null,null,null,null,0,"","","","",0]
[null,null,null,null,null,null,null,null,null,null,null,0,{"$f":"IF(K204=\"\",\"\",IF(K204=\"P\",0,1))","v":""},{"$f":"IF(K204=\"\",\"\",1)","v":""},{"$f":"IF(A204=\"\",\"\",MONTH(A204))","v":""},{"$f":"IF(A204=\"\",\"\",IF(O204=1,\"Janvier\",IF(O204=2,\"Février\",IF(O204=3,\"Mars\",IF(O204=4,\"Avril\",IF(O204=5,\"Mai\",IF(O204=6,\"Juin\",IF(O204=7,\"Juillet\",IF(O204=8,\"Août\",IF(O204=9,\"Septembre\",IF(O204=10,\"Octobre\",IF(O204=11,\"Novembre\",IF(O204=12,\"Décembre\",\"PB\")))))))))))))","v":""},0]
[null,null,null,null,null,null,null,null,null,null,null,{"$f":"IF(K205=\"G\",I205*J205-J205,-J205)","v":0},"","","","",{"$f":"Q204+L205","v":0}]
[null,null,null,null,null,null,null,null,null,null,null,0,"","","","",0]
[null,null,null,null,null,null,null,null,null,null,null,0,"","","","",0]
[null,null,null,null,null,null,null,null,null,null,null,0,"","","","",0]
[null,null,null,null,null,null,null,null,null,null,null,0,"","","","",0]
[null,null,null,null,null,null,null,null,null,null,null,0,"","","","",0]
[null,null,null,null,null,null,null,null,null,null,null,0,"","","","",0]
[null,null,null,null,null,null,null,null,null,null,null,0,"","","","",0]
[null,null,null,null,null,null,null,null,null,null,null,0,"","","","",0]
[null,null,null,null,null,null,null,null,null,null,null,0,"","","","",0]
[null,null,null,null,null,null,null,null,null,null,null,0,"","","","",0]
[null,null,null,null,null,null,null,null,null,null,null,0,"","","","",0]
[null,null,null,null,null,null,null,null,null,null,null,0,"","","","",0]
[null,null,null,null,null,null,null,null,null,null,null,0,"","","","",0]
[null,null,null,null,null,null,null,null,null,null,null,0,"","","","",0]
[null,null,null,null,null,null,null,null,null,null,null,0,"","","","",0]
[null,null,null,null,null,null,null,null,null,null,null,0,"","","","",0]
[null,null,null,null,null,null,null,null,null,null,null,0,"","","","",0]
[null,null,null,null,null,null,null,null,null,null,null,0,"","","","",0]
[null,null,null,null,null,null,null,null,null,null,null,0,"","","","",0]
[null,null,null,null,null,null,null,null,null,null,null,0,"","","","",0]
[null,null,null,null,null,null,null,null,null,null,null,0,"","","","",0]
[null,null,null,null,null,null,null,null,null,null,null,0,"","","","",0]
[null,null,null,null,null,null,null,null,null,null,null,0,"","","","",0]
[null,null,null,null,null,null,null,null,null,null,null,0,"","","","",0]
[null,null,null,null,null,null,null,null,null,null,null,0,"","","","",0]
[null,null,null,null,null,null,null,null,null,null,null,0,"","","","",0]
[null,null,null,null,null,null,null,null,null,null,null,0,"","","","",0]
[null,null,null,null,null,null,null,null,null,null,null,0,"","","","",0]
[null,null,null,null,null,null,null,null,null,null,null,0,"","","","",0]
[null,null,null,null,null,null,null,null,null,null,null,0,"","","","",0]
[null,null,null,null,null,null,null,null,null,null,null,0,"","","","",0]
[null,null,null,null,null,null,null,null,null,null,null,0,"","","","",0]
[null,null,null,null,null,null,null,null,null,null,null,0,"","","","",0]
[null,null,null,null,null,null,null,null,null,null,null,0,"","","","",0]
[null,null,null,null,null,null,null,null,null,null,null,0,"","","","",0]
[null,null,null,null,null,null,null,null,null,null,null,0,"","","","",0]
[null,null,null,null,null,null,null,null,null,null,null,0,"","","","",0]
[null,null,null,null,null,null,null,null,null,null,null,0,"","","","",0]
[null,null,null,null,null,null,null,null,null,null,null,0,"","","","",0]
[null,null,null,null,null,null,null,null,null,null,null,0,"","","","",0]
[null,null,null,null,null,null,null,null,null,null,null,0,"","","","",0]
[null,null,null,null,null,null,null,null,null,null,null,0,"","","","",0]
[null,null,null,null,null,null,null,null,null,null,null,0,"","","","",0]
[null,null,null,null,null,null,null,null,null,null,null,0,"","","","",0]
[null,null,null,null,null,null,null,null,null,null,null,0,"","","","",0]
[null,null,null,null,null,null,null,null,null,null,null,0,"","","","",0]
[null,null,null,null,null,null,null,null,null,null,null,0,"","","","",0]
[null,null,null,null,null,null,null,null,null,null,null,0,"","","","",0]
[null,null,null,null,null,null,null,null,null,null,null,0,"","","","",0]
[null,null,null,null,null,null,null,null,null,null,null,0,"","","","",0]
[null,null,null,null,null,null,null,null,null,null,null,0,"","","","",0]
[null,null,null,null,null,null,null,null,null,null,null,0,"","","","",0]
[null,null,null,null,null,null,null,null,null,null,null,0,"","","","",0]
[null,null,null,null,null,null,null,null,null,null,null,0,"","","","",0]
[null,null,null,null,null,null,null,null,null,null,null,0,"","","","",0]
[null,null,null,null,null,null,null,null,null,null,null,0,"","","","",0]
[null,null,null,null,null,null,null,null,null,null,null,0,"","","","",0]
[null,null,null,null,null,null,null,null,null,null,null,0,"","","","",0]
[null,null,null,null,null,null,null,null,null,null,null,0,"","","","",0]
[null,null,null,null,null,null,null,null,null,null,null,0,"","","","",0]
[null,null,null,null,null,null,null,null,null,null,null,0,"","","","",0]
[null,null,null,null,null,null,null,null,null,null,null,0,"","","","",0]
[null,null,null,null,null,null,null,null,null,null,null,0,{"$f":"IF(K268=\"\",\"\",IF(K268=\"P\",0,1))","v":""},{"$f":"IF(K268=\"\",\"\",1)","v":""},{"$f":"IF(A268=\"\",\"\",MONTH(A268))","v":""},{"$f":"IF(A268=\"\",\"\",IF(O268=1,\"Janvier\",IF(O268=2,\"Février\",IF(O268=3,\"Mars\",IF(O268=4,\"Avril\",IF(O268=5,\"Mai\",IF(O268=6,\"Juin\",IF(O268=7,\"Juillet\",IF(O268=8,\"Août\",IF(O268=9,\"Septembre\",IF(O268=10,\"Octobre\",IF(O268=11,\"Novembre\",IF(O268=12,\"Décembre\",\"PB\")))))))))))))","v":""},0]
[null,null,null,null,null,null,null,null,null,null,null,{"$f":"IF(K269=\"G\",I269*J269-J269,-J269)","v":0},"","","","",{"$f":"Q268+L269","v":0}]
[null,null,null,null,null,null,null,null,null,null,null,0,"","","","",0]
[null,null,null,null,null,null,null,null,null,null,null,0,"","","","",0]
[null,null,null,null,null,null,null,null,null,null,null,0,"","","","",0]
[null,null,null,null,null,null,null,null,null,null,null,0,"","","","",0]
[null,null,null,null,null,null,null,null,null,null,null,0,"","","","",0]
[null,null,null,null,null,null,null,null,null,null,null,0,"","","","",0]
[null,null,null,null,null,null,null,null,null,null,null,0,"","","","",0]
[null,null,null,null,null,null,null,null,null,null,null,0,"","","","",0]
[null,null,null,null,null,null,null,null,null,null,null,0,"","","","",0]
[null,null,null,null,null,null,null,null,null,null,null,0,"","","","",0]
[null,null,null,null,null,null,null,null,null,null,null,0,"","","","",0]
[null,null,null,null,null,null,null,null,null,null,null,0,"","","","",0]
[null,null,null,null,null,null,null,null,null,null,null,0,"","","","",0]
[null,null,null,null,null,null,null,null,null,null,null,0,"","","","",0]
[null,null,null,null,null,null,null,null,null,null,null,0,"","","","",0]
[null,null,null,null,null,null,null,null,null,null,null,0,"","","","",0]
[null,null,null,null,null,null,null,null,null,null,null,0,"","","","",0]
[null,null,null,null,null,null,null,null,null,null,null,0,"","","","",0]
[null,null,null,null,null,null,null,null,null,null,null,0,"","","","",0]
[null,null,null,null,null,null,null,null,null,null,null,0,"","","","",0]
[null,null,null,null,null,null,null,null,null,null,null,0,"","","","",0]
[null,null,null,null,null,null,null,null,null,null,null,0,"","","","",0]
[null,null,null,null,null,null,null,null,null,null,null,0,"","","","",0]
[null,null,null,null,null,null,null,null,null,null,null,0,"","","","",0]
[null,null,null,null,null,null,null,null,null,null,null,0,"","","","",0]
[null,null,null,null,null,null,null,null,null,null,null,0,"","","","",0]
[null,null,null,null,null,null,null,null,null,null,null,0,"","","","",0]
[null,null,null,null,null,null,null,null,null,null,null,0,"","","","",0]
[null,null,null,null,null,null,null,null,null,null,null,0,"","","","",0]
[null,null,null,null,null,null,null,null,null,null,null,0,"","","","",0]
[null,null,null,null,null,null,null,null,null,null,null,0,"","","","",0]
[null,null,null,null,null,null,null,null,null,null,null,0,"","","","",0]
[null,null,null,null,null,null,null,null,null,null,null,0,"","","","",0]
[null,null,null,null,null,null,null,null,null,null,null,0,"","","","",0]
[null,null,null,null,null,null,null,null,null,null,null,0,"","","","",0]
[null,null,null,null,null,null,null,null,null,null,null,0,"","","","",0]
[null,null,null,null,null,null,null,null,null,null,null,0,"","","","",0]
[null,null,null,null,null,null,null,null,null,null,null,0,"","","","",0]
[null,null,null,null,null,null,null,null,null,null,null,0,"","","","",0]
[null,null,null,null,null,null,null,null,null,null,null,0,"","","","",0]
[null,null,null,null,null,null,null,null,null,null,null,0,"","","","",0]
[null,null,null,null,null,null,null,null,null,null,null,0,"","","","",0]
[null,null,null,null,null,null,null,null,null,null,null,0,"","","","",0]
[null,null,null,null,null,null,null,null,null,null,null,0,"","","","",0]
[null,null,null,null,null,null,null,null,null,null,null,0,"","","","",0]
[null,null,null,null,null,null,null,null,null,null,null,0,"","","","",0]
[null,null,null,null,null,null,null,null,null,null,null,0,"","","","",0]
[null,null,null,null,null,null,null,null,null,null,null,0,"","","","",0]
[null,null,null,null,null,null,null,null,null,null,null,0,"","","","",0]
[null,null,null,null,null,null,null,null,null,null,null,0,"","","","",0]
[null,null,null,null,null,null,null,null,null,null,null,0,"","","","",0]
[null,null,null,null,null,null,null,null,null,null,null,0,"","","","",0]
[null,null,null,null,null,null,null,null,null,null,null,0,"","","","",0]
[null,null,null,null,null,null,null,null,null,null,null,0,"","","","",0]
[null,null,null,null,null,null,null,null,null,null,null,0,"","","","",0]
[null,null,null,null,null,null,null,null,null,null,null,0,"","","","",0]
[null,null,null,null,null,null,null,null,null,null,null,0,"","","","",0]
[null,null,null,null,null,null,null,null,null,null,null,0,"","","","",0]
[null,null,null,null,null,null,null,null,null,null,null,0,"","","","",0]
[null,null,null,null,null,null,null,null,null,null,null,0,"","","","",0]
[null,null,null,null,null,null,null,null,null,null,null,0,"","","","",0]
[null,null,null,null,null,null,null,null,null,null,null,0,"","","","",0]
[null,null,null,null,null,null,null,null,null,null,null,0,{"$f":"IF(K332=\"\",\"\",IF(K332=\"P\",0,1))","v":""},{"$f":"IF(K332=\"\",\"\",1)","v":""},{"$f":"IF(A332=\"\",\"\",MONTH(A332))","v":""},{"$f":"IF(A332=\"\",\"\",IF(O332=1,\"Janvier\",IF(O332=2,\"Février\",IF(O332=3,\"Mars\",IF(O332=4,\"Avril\",IF(O332=5,\"Mai\",IF(O332=6,\"Juin\",IF(O332=7,\"Juillet\",IF(O332=8,\"Août\",IF(O332=9,\"Septembre\",IF(O332=10,\"Octobre\",IF(O332=11,\"Novembre\",IF(O332=12,\"Décembre\",\"PB\")))))))))))))","v":""},0]
[null,null,null,null,null,null,null,null,null,null,null,{"$f":"IF(K333=\"G\",I333*J333-J333,-J333)","v":0},"","","","",{"$f":"Q332+L333","v":0}]
[null,null,null,null,null,null,null,null,null,null,null,0,"","","","",0]
[null,null,null,null,null,null,null,null,null,null,null,0,"","","","",0]
[null,null,null,null,null,null,null,null,null,null,null,0,"","","","",0]
[null,null,null,null,null,null,null,null,null,null,null,0,"","","","",0]
[null,null,null,null,null,null,null,null,null,null,null,0,"","","","",0]
[null,null,null,null,null,null,null,null,null,null,null,0,"","","","",0]
[null,null,null,null,null,null,null,null,null,null,null,0,"","","","",0]
[null,null,null,null,null,null,null,null,null,null,null,0,"","","","",0]
[null,null,null,null,null,null,null,null,null,null,null,0,"","","","",0]
[null,null,null,null,null,null,null,null,null,null,null,0,"","","","",0]
[null,null,null,null,null,null,null,null,null,null,null,0,"","","","",0]
[null,null,null,null,null,null,null,null,null,null,null,0,"","","","",0]
[null,null,null,null,null,null,null,null,null,null,null,0,"","","","",0]
[null,null,null,null,null,null,null,null,null,null,null,0,"","","","",0]
[null,null,null,null,null,null,null,null,null,null,null,0,"","","","",0]
[null,null,null,null,null,null,null,null,null,null,null,0,"","","","",0]
[null,null,null,null,null,null,null,null,null,null,null,0,"","","","",0]
[null,null,null,null,null,null,null,null,null,null,null,0,"","","","",0]
[null,null,null,null,null,null,null,null,null,null,null,0,"","","","",0]
[null,null,null,null,null,null,null,null,null,null,null,0,"","","","",0]
[null,null,null,null,null,null,null,null,null,null,null,0,"","","","",0]
[null,null,null,null,null,null,null,null,null,null,null,0,"","","","",0]
[null,null,null,null,null,null,null,null,null,null,null,0,"","","","",0]
[null,null,null,null,null,null,null,null,null,null,null,0,"","","","",0]
[null,null,null,null,null,null,null,null,null,null,null,0,"","","","",0]
[null,null,null,null,null,null,null,null,null,null,null,0,"","","","",0]
[null,null,null,null,null,null,null,null,null,null,null,0,"","","","",0]
[null,null,null,null,null,null,null,null,null,null,null,0,"","","","",0]
[null,null,null,null,null,null,null,null,null,null,null,0,"","","","",0]
[null,null,null,null,null,null,null,null,null,null,null,0,"","","","",0]
[null,null,null,null,null,null,null,null,null,null,null,0,"","","","",0]
[null,null,null,null,null,null,null,null,null,null,null,0,"","","","",0]
[null,null,null,null,null,null,null,null,null,null,null,0,"","","","",0]
[null,null,null,null,null,null,null,null,null,null,null,0,"","","","",0]
[null,null,null,null,null,null,null,null,null,null,null,0,"","","","",0]
[null,null,null,null,null,null,null,null,null,null,null,0,"","","","",0]
[null,null,null,null,null,null,null,null,null,null,null,0,"","","","",0]
[null,null,null,null,null,null,null,null,null,null,null,0,"","","","",0]
[null,null,null,null,null,null,null,null,null,null,null,0,"","","","",0]
[null,null,null,null,null,null,null,null,null,null,null,0,"","","","",0]
[null,null,null,null,null,null,null,null,null,null,null,0,"","","","",0]
[null,null,null,null,null,null,null,null,null,null,null,0,"","","","",0]
[null,null,null,null,null,null,null,null,null,null,null,0,"","","","",0]
[null,null,null,null,null,null,null,null,null,null,null,0,"","","","",0]
[null,null,null,null,null,null,null,null,null,null,null,0,"","","","",0]
[null,null,null,null,null,null,null,null,null,null,null,0,"","","","",0]
[null,null,null,null,null,null,null,null,null,null,null,0,"","","","",0]
[null,null,null,null,null,null,null,null,null,null,null,0,"","","","",0]
[null,null,null,null,null,null,null,null,null,null,null,0,"","","","",0]
[null,null,null,null,null,null,null,null,null,null,null,0,"","","","",0]
[null,null,null,null,null,null,null,null,null,null,null,0,"","","","",0]
[null,null,null,null,null,null,null,null,null,null,null,0,"","","","",0]
[null,null,null,null,null,null,null,null,null,null,null,0,"","","","",0]
[null,null,null,null,null,null,null,null,null,null,null,0,"","","","",0]
[null,null,null,null,null,null,null,null,null,null,null,0,"","","","",0]
[null,null,null,null,null,null,null,null,null,null,null,0,"","","","",0]
[null,null,null,null,null,null,null,null,null,null,null,0,"","","","",0]
[null,null,null,null,null,null,null,null,null,null,null,0,"","","","",0]
[null,null,null,null,null,null,null,null,null,null,null,0,"","","","",0]
[null,null,null,null,null,null,null,null,null,null,null,0,"","","","",0]
[null,null,null,null,null,null,null,null,null,null,null,0,"","","","",0]
[null,null,null,null,null,null,null,null,null,null,null,0,"","","","",0]
[null,null,null,null,null,null,null,null,null,null,null,0,{"$f":"IF(K396=\"\",\"\",IF(K396=\"P\",0,1))","v":""},{"$f":"IF(K396=\"\",\"\",1)","v":""},{"$f":"IF(A396=\"\",\"\",MONTH(A396))","v":""},{"$f":"IF(A396=\"\",\"\",IF(O396=1,\"Janvier\",IF(O396=2,\"Février\",IF(O396=3,\"Mars\",IF(O396=4,\"Avril\",IF(O396=5,\"Mai\",IF(O396=6,\"Juin\",IF(O396=7,\"Juillet\",IF(O396=8,\"Août\",IF(O396=9,\"Septembre\",IF(O396=10,\"Octobre\",IF(O396=11,\"Novembre\",IF(O396=12,\"Décembre\",\"PB\")))))))))))))","v":""},0]
[null,null,null,null,null,null,null,null,null,null,null,{"$f":"IF(K397=\"G\",I397*J397-J397,-J397)","v":0},"","","","",{"$f":"Q396+L397","v":0}]
[null,null,null,null,null,null,null,null,null,null,null,0,"","","","",0]
[null,null,null,null,null,null,null,null,null,null,null,0,"","","","",0]
[null,null,null,null,null,null,null,null,null,null,null,0,"","","","",0]
[null,null,null,null,null,null,null,null,null,null,null,0,"","","","",0]
[null,null,null,null,null,null,null,null,null,null,null,0,"","","","",0]
[null,null,null,null,null,null,null,null,null,null,null,0,"","","","",0]
[null,null,null,null,null,null,null,null,null,null,null,0,"","","","",0]
[null,null,null,null,null,null,null,null,null,null,null,0,"","","","",0]
[null,null,null,null,null,null,null,null,null,null,null,0,"","","","",0]
[null,null,null,null,null,null,null,null,null,null,null,0,"","","","",0]
[null,null,null,null,null,null,null,null,null,null,null,0,"","","","",0]
[null,null,null,null,null,null,null,null,null,null,null,0,"","","","",0]
[null,null,null,null,null,null,null,null,null,null,null,0,"","","","",0]
[null,null,null,null,null,null,null,null,null,null,null,0,"","","","",0]
[null,null,null,null,null,null,null,null,null,null,null,0,"","","","",0]
[null,null,null,null,null,null,null,null,null,null,null,0,"","","","",0]
[null,null,null,null,null,null,null,null,null,null,null,0,"","","","",0]
[null,null,null,null,null,null,null,null,null,null,null,0,"","","","",0]
[null,null,null,null,null,null,null,null,null,null,null,0,"","","","",0]
[null,null,null,null,null,null,null,null,null,null,null,0,"","","","",0]
[null,null,null,null,null,null,null,null,null,null,null,0,"","","","",0]
[null,null,null,null,null,null,null,null,null,null,null,0,"","","","",0]
[null,null,null,null,null,null,null,null,null,null,null,0,"","","","",0]
[null,null,null,null,null,null,null,null,null,null,null,0,"","","","",0]
[null,null,null,null,null,null,null,null,null,null,null,0,"","","","",0]
[null,null,null,null,null,null,null,null,null,null,null,0,"","","","",0]
[null,null,null,null,null,null,null,null,null,null,null,0,"","","","",0]
[null,null,null,null,null,null,null,null,null,null,null,0,"","","","",0]
[null,null,null,null,null,null,null,null,null,null,null,0,"","","","",0]
[null,null,null,null,null,null,null,null,null,null,null,0,"","","","",0]
[null,null,null,null,null,null,null,null,null,null,null,0,"","","","",0]
[null,null,null,null,null,null,null,null,null,null,null,0,"","","","",0]
[null,null,null,null,null,null,null,null,null,null,null,0,"","","","",0]
[null,null,null,null,null,null,null,null,null,null,null,0,"","","","",0]
[null,null,null,null,null,null,null,null,null,null,null,0,"","","","",0]
[null,null,null,null,null,null,null,null,null,null,null,0,"","","","",0]
[null,null,null,null,null,null,null,null,null,null,null,0,"","","","",0]
[null,null,null,null,null,null,null,null,null,null,null,0,"","","","",0]
[null,null,null,null,null,null,null,null,null,null,null,0,"","","","",0]
[null,null,null,null,null,null,null,null,null,null,null,0,"","","","",0]
[null,null,null,null,null,null,null,null,null,null,null,0,"","","","",0]
[null,null,null,null,null,null,null,null,null,null,null,0,"","","","",0]
[null,null,null,null,null,null,null,null,null,null,null,0,"","","","",0]
[null,null,null,null,null,null,null,null,null,null,null,0,"","","","",0]
[null,null,null,null,null,null,null,null,null,null,null,0,"","","","",0]
[null,null,null,null,null,null,null,null,null,null,null,0,"","","","",0]
[null,null,null,null,null,null,null,null,null,null,null,0,"","","","",0]
[null,null,null,null,null,null,null,null,null,null,null,0,"","","","",0]
[null,null,null,null,null,null,null,null,null,null,null,0,"","","","",0]
[null,null,null,null,null,null,null,null,null,null,null,0,"","","","",0]
[null,null,null,null,null,null,null,null,null,null,null,0,"","","","",0]
[null,null,null,null,null,null,null,null,null,null,null,0,"","","","",0]
[null,null,null,null,null,null,null,null,null,null,null,0,"","","","",0]
[null,null,null,null,null,null,null,null,null,null,null,0,"","","","",0]
[null,null,null,null,null,null,null,null,null,null,null,0,"","","","",0]
[null,null,null,null,null,null,null,null,null,null,null,0,"","","","",0]
[null,null,null,null,null,null,null,null,null,null,null,0,"","","","",0]
[null,null,null,null,null,null,null,null,null,null,null,0,"","","","",0]
[null,null,null,null,null,null,null,null,null,null,null,0,"","","","",0]
[null,null,null,null,null,null,null,null,null,null,null,0,"","","","",0]
[null,null,null,null,null,null,null,null,null,null,null,0,"","","","",0]
[null,null,null,null,null,null,null,null,null,null,null,0,"","","","",0]
[null,null,null,null,null,null,null,null,null,null,null,0,{"$f":"IF(K460=\"\",\"\",IF(K460=\"P\",0,1))","v":""},{"$f":"IF(K460=\"\",\"\",1)","v":""},{"$f":"IF(A460=\"\",\"\",MONTH(A460))","v":""},{"$f":"IF(A460=\"\",\"\",IF(O460=1,\"Janvier\",IF(O460=2,\"Février\",IF(O460=3,\"Mars\",IF(O460=4,\"Avril\",IF(O460=5,\"Mai\",IF(O460=6,\"Juin\",IF(O460=7,\"Juillet\",IF(O460=8,\"Août\",IF(O460=9,\"Septembre\",IF(O460=10,\"Octobre\",IF(O460=11,\"Novembre\",IF(O460=12,\"Décembre\",\"PB\")))))))))))))","v":""},0]
[null,null,null,null,null,null,null,null,null,null,null,{"$f":"IF(K461=\"G\",I461*J461-J461,-J461)","v":0},"","","","",{"$f":"Q460+L461","v":0}]
[null,null,null,null,null,null,null,null,null,null,null,0,"","","","",0]
[null,null,null,null,null,null,null,null,null,null,null,0,"","","","",0]
[null,null,null,null,null,null,null,null,null,null,null,0,"","","","",0]
[null,null,null,null,null,null,null,null,null,null,null,0,"","","","",0]
[null,null,null,null,null,null,null,null,null,null,null,0,"","","","",0]
[null,null,null,null,null,null,null,null,null,null,null,0,"","","","",0]
[null,null,null,null,null,null,null,null,null,null,null,0,"","","","",0]
[null,null,null,null,null,null,null,null,null,null,null,0,"","","","",0]
[null,null,null,null,null,null,null,null,null,null,null,0,"","","","",0]
[null,null,null,null,null,null,null,null,null,null,null,0,"","","","",0]
[null,null,null,null,null,null,null,null,null,null,null,0,"","","","",0]
[null,null,null,null,null,null,null,null,null,null,null,0,"","","","",0]
[null,null,null,null,null,null,null,null,null,null,null,0,"","","","",0]
[null,null,null,null,null,null,null,null,null,null,null,0,"","","","",0]
[null,null,null,null,null,null,null,null,null,null,null,0,"","","","",0]
[null,null,null,null,null,null,null,null,null,null,null,0,"","","","",0]
[null,null,null,null,null,null,null,null,null,null,null,0,"","","","",0]
[null,null,null,null,null,null,null,null,null,null,null,0,"","","","",0]
[null,null,null,null,null,null,null,null,null,null,null,0,"","","","",0]
[null,null,null,null,null,null,null,null,null,null,null,0,"","","","",0]
[null,null,null,null,null,null,null,null,null,null,null,0,"","","","",0]
[null,null,null,null,null,null,null,null,null,null,null,0,"","","","",0]
[null,null,null,null,null,null,null,null,null,null,null,0,"","","","",0]
[null,null,null,null,null,null,null,null,null,null,null,0,"","","","",0]
[null,null,null,null,null,null,null,null,null,null,null,0,"","","","",0]
[null,null,null,null,null,null,null,null,null,null,null,0,"","","","",0]
[null,null,null,null,null,null,null,null,null,null,null,0,"","","","",0]
[null,null,null,null,null,null,null,null,null,null,null,0,"","","","",0]
[null,null,null,null,null,null,null,null,null,null,null,0,"","","","",0]
[null,null,null,null,null,null,null,null,null,null,null,0,"","","","",0]
[null,null,null,null,null,null,null,null,null,null,null,0,"","","","",0]
[null,null,null,null,null,null,null,null,null,null,null,0,"","","","",0]
[null,null,null,null,null,null,null,null,null,null,null,0,"","","","",0]
[null,null,null,null,null,null,null,null,null,null,null,0,"","","","",0]
[null,null,null,null,null,null,null,null,null,null,null,0,"","","","",0]
[null,null,null,null,null,null,null,null,null,null,null,0,"","","","",0]
[null,null,null,null,null,null,null,null,null,null,null,0,"","","","",0]
[null,null,null,null,null,null,null,null,null,null,null,0,"","","","",0]
[null,null,null,null,null,null,null,null,null,null,null,0,"","","","",0]
[null,null,null,null,null,null,null,null,null,null,null,0,"","","","",0]
[null,null,null,null,null,null,null,null,null,null,null,0,"","","","",0]
[null,null,null,null,null,null,null,null,null,null,null,0,"","","","",0]
[null,null,null,null,null,null,null,null,null,null,null,0,"","","","",0]
[null,null,null,null,null,null,null,null,null,null,null,0,"","","","",0]
[null,null,null,null,null,null,null,null,null,null,null,0,"","","","",0]
[null,null,null,null,null,null,null,null,null,null,null,0,"","","","",0]
[null,null,null,null,null,null,null,null,null,null,null,0,"","","","",0]
[null,null,null,null,null,null,null,null,null,null,null,0,"","","","",0]
[null,null,null,null,null,null,null,null,null,null,null,0,"","","","",0]
[null,null,null,null,null,null,null,null,null,null,null,0,"","","","",0]
[null,null,null,null,null,null,null,null,null,null,null,0,"","","","",0]
[null,null,null,null,null,null,null,null,null,null,null,0,"","","","",0]
[null,null,null,null,null,null,null,null,null,null,null,0,"","","","",0]
[null,null,null,null,null,null,null,null,null,null,null,0,"","","","",0]
[null,null,null,null,null,null,null,null,null,null,null,0,"","","","",0]
[null,null,null,null,null,null,null,null,null,null,null,0,"","","","",0]
[null,null,null,null,null,null,null,null,null,null,null,0,"","","","",0]
[null,null,null,null,null,null,null,null,null,null,null,0,"","","","",0]
[null,null,null,null,null,null,null,null,null,null,null,0,"","","","",0]
[null,null,null,null,null,null,null,null,null,null,null,0,"","","","",0]
[null,null,null,null,null,null,null,null,null,null,null,0,"","","","",0]
[null,null,null,null,null,null,null,null,null,null,null,0,"","","","",0]
[null,null,null,null,null,null,null,null,null,null,null,0,{"$f":"IF(K524=\"\",\"\",IF(K524=\"P\",0,1))","v":""},{"$f":"IF(K524=\"\",\"\",1)","v":""},{"$f":"IF(A524=\"\",\"\",MONTH(A524))","v":""},{"$f":"IF(A524=\"\",\"\",IF(O524=1,\"Janvier\",IF(O524=2,\"Février\",IF(O524=3,\"Mars\",IF(O524=4,\"Avril\",IF(O524=5,\"Mai\",IF(O524=6,\"Juin\",IF(O524=7,\"Juillet\",IF(O524=8,\"Août\",IF(O524=9,\"Septembre\",IF(O524=10,\"Octobre\",IF(O524=11,\"Novembre\",IF(O524=12,\"Décembre\",\"PB\")))))))))))))","v":""},0]
[null,null,null,null,null,null,null,null,null,null,null,{"$f":"IF(K525=\"G\",I525*J525-J525,-J525)","v":0},"","","","",{"$f":"Q524+L525","v":0}]
[null,null,null,null,null,null,null,null,null,null,null,0,"","","","",0]
[null,null,null,null,null,null,null,null,null,null,null,0,"","","","",0]
[null,null,null,null,null,null,null,null,null,null,null,0,"","","","",0]
[null,null,null,null,null,null,null,null,null,null,null,0,"","","","",0]
[null,null,null,null,null,null,null,null,null,null,null,0,"","","","",0]
[null,null,null,null,null,null,null,null,null,null,null,0,"","","","",0]
[null,null,null,null,null,null,null,null,null,null,null,0,"","","","",0]
[null,null,null,null,null,null,null,null,null,null,null,0,"","","","",0]
[null,null,null,null,null,null,null,null,null,null,null,0,"","","","",0]
[null,null,null,null,null,null,null,null,null,null,null,0,"","","","",0]
[null,null,null,null,null,null,null,null,null,null,null,0,"","","","",0]
[null,null,null,null,null,null,null,null,null,null,null,0,"","","","",0]
[null,null,null,null,null,null,null,null,null,null,null,0,"","","","",0]
[null,null,null,null,null,null,null,null,null,null,null,0,"","","","",0]
[null,null,null,null,null,null,null,null,null,null,null,0,"","","","",0]
[null,null,null,null,null,null,null,null,null,null,null,0,"","","","",0]
[null,null,null,null,null,null,null,null,null,null,null,0,"","","","",0]
[null,null,null,null,null,null,null,null,null,null,null,0,"","","","",0]
[null,null,null,null,null,null,null,null,null,null,null,0,"","","","",0]
[null,null,null,null,null,null,null,null,null,null,null,0,"","","","",0]
[null,null,null,null,null,null,null,null,null,null,null,0,"","","","",0]
[null,null,null,null,null,null,null,null,null,null,null,0,"","","","",0]
[null,null,null,null,null,null,null,null,null,null,null,0,"","","","",0]
[null,null,null,null,null,null,null,null,null,null,null,0,"","","","",0]
[null,null,null,null,null,null,null,null,null,null,null,0,"","","","",0]
[null,null,null,null,null,null,null,null,null,null,null,0,"","","","",0]
[null,null,null,null,null,null,null,null,null,null,null,0,"","","","",0]
[null,null,null,null,null,null,null,null,null,null,null,0,"","","","",0]
[null,null,null,null,null,null,null,null,null,null,null,0,"","","","",0]
[null,null,null,null,null,null,null,null,null,null,null,0,"","","","",0]
[null,null,null,null,null,null,null,null,null,null,null,0,"","","","",0]
[null,null,null,null,null,null,null,null,null,null,null,0,"","","","",0]
[null,null,null,null,null,null,null,null,null,null,null,0,"","","","",0]
[null,null,null,null,null,null,null,null,null,null,null,0,"","","","",0]
[null,null,null,null,null,null,null,null,null,null,null,0,"","","","",0]
[null,null,null,null,null,null,null,null,null,null,null,0,"","","","",0]
[null,null,null,null,null,null,null,null,null,null,null,0,"","","","",0]
[null,null,null,null,null,null,null,null,null,null,null,0,"","","","",0]
[null,null,null,null,null,null,null,null,null,null,null,0,"","","","",0]
[null,null,null,null,null,null,null,null,null,null,null,0,"","","","",0]
[null,null,null,null,null,null,null,null,null,null,null,0,"","","","",0]
[null,null,null,null,null,null,null,null,null,null,null,0,"","","","",0]
[null,null,null,null,null,null,null,null,null,null,null,0,"","","","",0]
[null,null,null,null,null,null,null,null,null,null,null,0,"","","","",0]
[null,null,null,null,null,null,null,null,null,null,null,0,"","","","",0]
[null,null,null,null,null,null,null,null,null,null,null,0,"","","","",0]
[null,null,null,null,null,null,null,null,null,null,null,0,"","","","",0]
[null,null,null,null,null,null,null,null,null,null,null,0,"","","","",0]
[null,null,null,null,null,null,null,null,null,null,null,0,"","","","",0]
[null,null,null,null,null,null,null,null,null,null,null,0,"","","","",0]
[null,null,null,null,null,null,null,null,null,null,null,0,"","","","",0]
[null,null,null,null,null,null,null,null,null,null,null,0,"","","","",0]
[null,null,null,null,null,null,null,null,null,null,null,0,"","","","",0]
[null,null,null,null,null,null,null,null,null,null,null,0,"","","","",0]
[null,null,null,null,null,null,null,null,null,null,null,0,"","","","",0]
[null,null,null,null,null,null,null,null,null,null,null,0,"","","","",0]
[null,null,null,null,null,null,null,null,null,null,null,0,"","","","",0]
[null,null,null,null,null,null,null,null,null,null,null,0,"","","","",0]
[null,null,null,null,null,null,null,null,null,null,null,0,"","","","",0]
[null,null,null,null,null,null,null,null,null,null,null,0,"","","","",0]
[null,null,null,null,null,null,null,null,null,null,null,0,"","","","",0]
[null,null,null,null,null,null,null,null,null,null,null,0,"","","","",0]
[null,null,null,null,null,null,null,null,null,null,null,0,{"$f":"IF(K588=\"\",\"\",IF(K588=\"P\",0,1))","v":""},{"$f":"IF(K588=\"\",\"\",1)","v":""},{"$f":"IF(A588=\"\",\"\",MONTH(A588))","v":""},{"$f":"IF(A588=\"\",\"\",IF(O588=1,\"Janvier\",IF(O588=2,\"Février\",IF(O588=3,\"Mars\",IF(O588=4,\"Avril\",IF(O588=5,\"Mai\",IF(O588=6,\"Juin\",IF(O588=7,\"Juillet\",IF(O588=8,\"Août\",IF(O588=9,\"Septembre\",IF(O588=10,\"Octobre\",IF(O588=11,\"Novembre\",IF(O588=12,\"Décembre\",\"PB\")))))))))))))","v":""},0]
[null,null,null,null,null,null,null,null,null,null,null,{"$f":"IF(K589=\"G\",I589*J589-J589,-J589)","v":0},"","","","",{"$f":"Q588+L589","v":0}]
[null,null,null,null,null,null,null,null,null,null,null,0,"","","","",0]
[null,null,null,null,null,null,null,null,null,null,null,0,"","","","",0]
[null,null,null,null,null,null,null,null,null,null,null,0,"","","","",0]
[null,null,null,null,null,null,null,null,null,null,null,0,"","","","",0]
[null,null,null,null,null,null,null,null,null,null,null,0,"","","","",0]
[null,null,null,null,null,null,null,null,null,null,null,0,"","","","",0]
[null,null,null,null,null,null,null,null,null,null,null,0,"","","","",0]
[null,null,null,null,null,null,null,null,null,null,null,0,"","","","",0]
[null,null,null,null,null,null,null,null,null,null,null,0,"","","","",0]
[null,null,null,null,null,null,null,null,null,null,null,0,"","","","",0]
[null,null,null,null,null,null,null,null,null,null,null,0,"","","","",0]
[null,null,null,null,null,null,null,null,null,null,null,0,"","","","",0]
[null,null,null,null,null,null,null,null,null,null,null,0,"","","","",0]
[null,null,null,null,null,null,null,null,null,null,null,0,"","","","",0]
[null,null,null,null,null,null,null,null,null,null,null,0,"","","","",0]
[null,null,null,null,null,null,null,null,null,null,null,0,"","","","",0]
[null,null,null,null,null,null,null,null,null,null,null,0,"","","","",0]
[null,null,null,null,null,null,null,null,null,null,null,0,"","","","",0]
[null,null,null,null,null,null,null,null,null,null,null,0,"","","","",0]
[null,null,null,null,null,null,null,null,null,null,null,0,"","","","",0]
[null,null,null,null,null,null,null,null,null,null,null,0,"","","","",0]
[null,null,null,null,null,null,null,null,null,null,null,0,"","","","",0]
[null,null,null,null,null,null,null,null,null,null,null,0,"","","","",0]
[null,null,null,null,null,null,null,null,null,null,null,0,"","","","",0]
[null,null,null,null,null,null,null,null,null,null,null,0,"","","","",0]
[null,null,null,null,null,null,null,null,null,null,null,0,"","","","",0]
[null,null,null,null,null,null,null,null,null,null,null,0,"","","","",0]
[null,null,null,null,null,null,null,null,null,null,null,0,"","","","",0]
[null,null,null,null,null,null,null,null,null,null,null,0,"","","","",0]
[null,null,null,null,null,null,null,null,null,null,null,0,"","","","",0]
[null,null,null,null,null,null,null,null,null,null,null,0,"","","","",0]
[null,null,null,null,null,null,null,null,null,null,null,0,"","","","",0]
[null,null,null,null,null,null,null,null,null,null,null,0,"","","","",0]
[null,null,null,null,null,null,null,null,null,null,null,0,"","","","",0]
[null,null,null,null,null,null,null,null,null,null,null,0,"","","","",0]
[null,null,null,null,null,null,null,null,null,null,null,0,"","","","",0]
[null,null,null,null,null,null,null,null,null,null,null,0,"","","","",0]
[null,null,null,null,null,null,null,null,null,null,null,0,"","","","",0]
[null,null,null,null,null,null,null,null,null,null,null,0,"","","","",0]
[null,null,null,null,null,null,null,null,null,null,null,0,"","","","",0]
[null,null,null,null,null,null,null,null,null,null,null,0,"","","","",0]
[null,null,null,null,null,null,null,null,null,null,null,0,"","","","",0]
[null,null,null,null,null,null,null,null,null,null,null,0,"","","","",0]
[null,null,null,null,null,null,null,null,null,null,null,0,"","","","",0]
[null,null,null,null,null,null,null,null,null,null,null,0,"","","","",0]
[null,null,null,null,null,null,null,null,null,null,null,0,"","","","",0]
[null,null,null,null,null,null,null,null,null,null,null,0,"","","","",0]
[null,null,null,null,null,null,null,null,null,null,null,0,"","","","",0]
[null,null,null,null,null,null,null,null,null,null,null,0,"","","","",0]
[null,null,null,null,null,null,null,null,null,null,null,0,"","","","",0]
[null,null,null,null,null,null,null,null,null,null,null,0,"","","","",0]
[null,null,null,null,null,null,null,null,null,null,null,0,"","","","",0]
[null,null,null,null,null,null,null,null,null,null,null,0,"","","","",0]
[null,null,null,null,null,null,null,null,null,null,null,0,"","","","",0]
[null,null,null,null,null,null,null,null,null,null,null,0,"","","","",0]
[null,null,null,null,null,null,null,null,null,null,null,0,"","","","",0]
[null,null,null,null,null,null,null,null,null,null,null,0,"","","","",0]
[null,null,null,null,null,null,null,null,null,null,null,0,"","","","",0]
[null,null,null,null,null,null,null,null,null,null,null,0,"","","","",0]
[null,null,null,null,null,null,null,null,null,null,null,0,"","","","",0]
[null,null,null,null,null,null,null,null,null,null,null,0,"","","","",0]
[null,null,null,null,null,null,null,null,null,null,null,0,"","","","",0]
[null,null,null,null,null,null,null,null,null,null,null,0,{"$f":"IF(K652=\"\",\"\",IF(K652=\"P\",0,1))","v":""},{"$f":"IF(K652=\"\",\"\",1)","v":""},{"$f":"IF(A652=\"\",\"\",MONTH(A652))","v":""},{"$f":"IF(A652=\"\",\"\",IF(O652=1,\"Janvier\",IF(O652=2,\"Février\",IF(O652=3,\"Mars\",IF(O652=4,\"Avril\",IF(O652=5,\"Mai\",IF(O652=6,\"Juin\",IF(O652=7,\"Juillet\",IF(O652=8,\"Août\",IF(O652=9,\"Septembre\",IF(O652=10,\"Octobre\",IF(O652=11,\"Novembre\",IF(O652=12,\"Décembre\",\"PB\")))))))))))))","v":""},0]
[null,null,null,null,null,null,null,null,null,null,null,{"$f":"IF(K653=\"G\",I653*J653-J653,-J653)","v":0},"","","","",{"$f":"Q652+L653","v":0}]
[null,null,null,null,null,null,null,null,null,null,null,0,"","","","",0]
[null,null,null,null,null,null,null,null,null,null,null,0,"","","","",0]
[null,null,null,null,null,null,null,null,null,null,null,0,"","","","",0]
[null,null,null,null,null,null,null,null,null,null,null,0,"","","","",0]
[null,null,null,null,null,null,null,null,null,null,null,0,"","","","",0]
[null,null,null,null,null,null,null,null,null,null,null,0,"","","","",0]
[null,null,null,null,null,null,null,null,null,null,null,0,"","","","",0]
[null,null,null,null,null,null,null,null,null,null,null,0,"","","","",0]
[null,null,null,null,null,null,null,null,null,null,null,0,"","","","",0]
[null,null,null,null,null,null,null,null,null,null,null,0,"","","","",0]
[null,null,null,null,null,null,null,null,null,null,null,0,"","","","",0]
[null,null,null,null,null,null,null,null,null,null,null,0,"","","","",0]
[null,null,null,null,null,null,null,null,null,null,null,0,"","","","",0]
[null,null,null,null,null,null,null,null,null,null,null,0,"","","","",0]
[null,null,null,null,null,null,null,null,null,null,null,0,"","","","",0]
[null,null,null,null,null,null,null,null,null,null,null,0,"","","","",0]
[null,null,null,null,null,null,null,null,null,null,null,0,"","","","",0]
[null,null,null,null,null,null,null,null,null,null,null,0,"","","","",0]
[null,null,null,null,null,null,null,null,null,null,null,0,"","","","",0]
[null,null,null,null,null,null,null,null,null,null,null,0,"","","","",0]
[null,null,null,null,null,null,null,null,null,null,null,0,"","","","",0]
[null,null,null,null,null,null,null,null,null,null,null,0,"","","","",0]
[null,null,null,null,null,null,null,null,null,null,null,0,"","","","",0]
[null,null,null,null,null,null,null,null,null,null,null,0,"","","","",0]
[null,null,null,null,null,null,null,null,null,null,null,0,"","","","",0]
[null,null,null,null,null,null,null,null,null,null,null,0,"","","","",0]
[null,null,null,null,null,null,null,null,null,null,null,0,"","","","",0]
[null,null,null,null,null,null,null,null,null,null,null,0,"","","","",0]
[null,null,null,null,null,null,null,null,null,null,null,0,"","","","",0]
[null,null,null,null,null,null,null,null,null,null,null,0,"","","","",0]
[null,null,null,null,null,null,null,null,null,null,null,0,"","","","",0]
[null,null,null,null,null,null,null,null,null,null,null,0,"","","","",0]
[null,null,null,null,null,null,null,null,null,null,null,0,"","","","",0]
[null,null,null,null,null,null,null,null,null,null,null,0,"","","","",0]
[null,null,null,null,null,null,null,null,null,null,null,0,"","","","",0]
[null,null,null,null,null,null,null,null,null,null,null,0,"","","","",0]
[null,null,null,null,null,null,null,null,null,null,null,0,"","","","",0]
[null,null,null,null,null,null,null,null,null,null,null,0,"","","","",0]
[null,null,null,null,null,null,null,null,null,null,null,0,"","","","",0]
[null,null,null,null,null,null,null,null,null,null,null,0,"","","","",0]
[null,null,null,null,null,null,null,null,null,null,null,0,"","","","",0]
[null,null,null,null,null,null,null,null,null,null,null,0,"","","","",0]
[null,null,null,null,null,null,null,null,null,null,null,0,"","","","",0]
[null,null,null,null,null,null,null,null,null,null,null,0,"","","","",0]
[null,null,null,null,null,null,null,null,null,null,null,0,"","","","",0]
[null,null,null,null,null,null,null,null,null,null,null,0,"","","","",0]
[null,null,null,null,null,null,null,null,null,null,null,0,"","","","",0]
[null,null,null,null,null,null,null,null,null,null,null,0,"","","","",0]
[null,null,null,null,null,null,null,null,null,null,null,0,"","","","",0]
[null,null,null,null,null,null,null,null,null,null,null,0,"","","","",0]
[null,null,null,null,null,null,null,null,null,null,null,0,"","","","",0]
[null,null,null,null,null,null,null,null,null,null,null,0,"","","","",0]
[null,null,null,null,null,null,null,null,null,null,null,0,"","","","",0]
[null,null,null,null,null,null,null,null,null,null,null,0,"","","","",0]
[null,null,null,null,null,null,null,null,null,null,null,0,"","","","",0]
[null,null,null,null,null,null,null,null,null,null,null,0,"","","","",0]
[null,null,null,null,null,null,null,null,null,null,null,0,"","","","",0]
[null,null,null,null,null,null,null,null,null,null,null,0,"","","","",0]
[null,null,null,null,null,null,null,null,null,null,null,0,"","","","",0]
[null,null,null,null,null,null,null,null,null,null,null,0,"","","","",0]
[null,null,null,null,null,null,null,null,null,null,null,0,"","","","",0]
[null,null,null,null,null,null,null,null,null,null,null,0,"","","","",0]
[null,null,null,null,null,null,null,null,null,null,null,0,{"$f":"IF(K716=\"\",\"\",IF(K716=\"P\",0,1))","v":""},{"$f":"IF(K716=\"\",\"\",1)","v":""},{"$f":"IF(A716=\"\",\"\",MONTH(A716))","v":""},{"$f":"IF(A716=\"\",\"\",IF(O716=1,\"Janvier\",IF(O716=2,\"Février\",IF(O716=3,\"Mars\",IF(O716=4,\"Avril\",IF(O716=5,\"Mai\",IF(O716=6,\"Juin\",IF(O716=7,\"Juillet\",IF(O716=8,\"Août\",IF(O716=9,\"Septembre\",IF(O716=10,\"Octobre\",IF(O716=11,\"Novembre\",IF(O716=12,\"Décembre\",\"PB\")))))))))))))","v":""},0]
[null,null,null,null,null,null,null,null,null,null,null,{"$f":"IF(K717=\"G\",I717*J717-J717,-J717)","v":0},"","","","",{"$f":"Q716+L717","v":0}]
[null,null,null,null,null,null,null,null,null,null,null,0,"","","","",0]
[null,null,null,null,null,null,null,null,null,null,null,0,"","","","",0]
[null,null,null,null,null,null,null,null,null,null,null,0,"","","","",0]
[null,null,null,null,null,null,null,null,null,null,null,0,"","","","",0]
[null,null,null,null,null,null,null,null,null,null,null,0,"","","","",0]
[null,null,null,null,null,null,null,null,null,null,null,0,"","","","",0]
[null,null,null,null,null,null,null,null,null,null,null,0,"","","","",0]
[null,null,null,null,null,null,null,null,null,null,null,0,"","","","",0]
[null,null,null,null,null,null,null,null,null,null,null,0,"","","","",0]
[null,null,null,null,null,null,null,null,null,null,null,0,"","","","",0]
[null,null,null,null,null,null,null,null,null,null,null,0,"","","","",0]
[null,null,null,null,null,null,null,null,null,null,null,0,"","","","",0]
[null,null,null,null,null,null,null,null,null,null,null,0,"","","","",0]
[null,null,null,null,null,null,null,null,null,null,null,0,"","","","",0]
[null,null,null,null,null,null,null,null,null,null,null,0,"","","","",0]
[null,null,null,null,null,null,null,null,null,null,null,0,"","","","",0]
[null,null,null,null,null,null,null,null,null,null,null,0,"","","","",0]
[null,null,null,null,null,null,null,null,null,null,null,0,"","","","",0]
[null,null,null,null,null,null,null,null,null,null,null,0,"","","","",0]
[null,null,null,null,null,null,null,null,null,null,null,0,"","","","",0]
[null,null,null,null,null,null,null,null,null,null,null,0,"","","","",0]
[null,null,null,null,null,null,null,null,null,null,null,0,"","","","",0]
[null,null,null,null,null,null,null,null,null,null,null,0,"","","","",0]
[null,null,null,null,null,null,null,null,null,null,null,0,"","","","",0]
[null,null,null,null,null,null,null,null,null,null,null,0,"","","","",0]
[null,null,null,null,null,null,null,null,null,null,null,0,"","","","",0]
[null,null,null,null,null,null,null,null,null,null,null,0,"","","","",0]
[null,null,null,null,null,null,null,null,null,null,null,0,"","","","",0]
[null,null,null,null,null,null,null,null,null,null,null,0,"","","","",0]
[null,null,null,null,null,null,null,null,null,null,null,0,"","","","",0]
[null,null,null,null,null,null,null,null,null,null,null,0,"","","","",0]
[null,null,null,null,null,null,null,null,null,null,null,0,"","","","",0]
[null,null,null,null,null,null,null,null,null,null,null,0,"","","","",0]
[null,null,null,null,null,null,null,null,null,null,null,0,"","","","",0]
[null,null,null,null,null,null,null,null,null,null,null,0,"","","","",0]
[null,null,null,null,null,null,null,null,null,null,null,0,"","","","",0]
[null,null,null,null,null,null,null,null,null,null,null,0,"","","","",0]
[null,null,null,null,null,null,null,null,null,null,null,0,"","","","",0]
[null,null,null,null,null,null,null,null,null,null,null,0,"","","","",0]
[null,null,null,null,null,null,null,null,null,null,null,0,"","","","",0]
[null,null,null,null,null,null,null,null,null,null,null,0,"","","","",0]
[null,null,null,null,null,null,null,null,null,null,null,0,"","","","",0]
[null,null,null,null,null,null,null,null,null,null,null,0,"","","","",0]
[null,null,null,null,null,null,null,null,null,null,null,0,"","","","",0]
[null,null,null,null,null,null,null,null,null,null,null,0,"","","","",0]
[null,null,null,null,null,null,null,null,null,null,null,0,"","","","",0]
[null,null,null,null,null,null,null,null,null,null,null,0,"","","","",0]
[null,null,null,null,null,null,null,null,null,null,null,0,"","","","",0]
[null,null,null,null,null,null,null,null,null,null,null,0,"","","","",0]
[null,null,null,null,null,null,null,null,null,null,null,0,"","","","",0]
[null,null,null,null,null,null,null,null,null,null,null,0,"","","","",0]
[null,null,null,null,null,null,null,null,null,null,null,0,"","","","",0]
[null,null,null,null,null,null,null,null,null,null,null,0,"","","","",0]
[null,null,null,null,null,null,null,null,null,null,null,0,"","","","",0]
[null,null,null,null,null,null,null,null,null,null,null,0,"","","","",0]
[null,null,null,null,null,null,null,null,null,null,null,0,"","","","",0]
[null,null,null,null,null,null,null,null,null,null,null,0,"","","","",0]
[null,null,null,null,null,null,null,null,null,null,null,0,"","","","",0]
[null,null,null,null,null,null,null,null,null,null,null,0,"","","","",0]
[null,null,null,null,null,null,null,null,null,null,null,0,"","","","",0]
[null,null,null,null,null,null,null,null,null,null,null,0,"","","","",0]
[null,null,null,null,null,null,null,null,null,null,null,0,"","","","",0]
[null,null,null,null,null,null,null,null,null,null,null,0,{"$f":"IF(K780=\"\",\"\",IF(K780=\"P\",0,1))","v":""},{"$f":"IF(K780=\"\",\"\",1)","v":""},{"$f":"IF(A780=\"\",\"\",MONTH(A780))","v":""},{"$f":"IF(A780=\"\",\"\",IF(O780=1,\"Janvier\",IF(O780=2,\"Février\",IF(O780=3,\"Mars\",IF(O780=4,\"Avril\",IF(O780=5,\"Mai\",IF(O780=6,\"Juin\",IF(O780=7,\"Juillet\",IF(O780=8,\"Août\",IF(O780=9,\"Septembre\",IF(O780=10,\"Octobre\",IF(O780=11,\"Novembre\",IF(O780=12,\"Décembre\",\"PB\")))))))))))))","v":""},0]
[null,null,null,null,null,null,null,null,null,null,null,{"$f":"IF(K781=\"G\",I781*J781-J781,-J781)","v":0},"","","","",{"$f":"Q780+L781","v":0}]
[null,null,null,null,null,null,null,null,null,null,null,0,"","","","",0]
[null,null,null,null,null,null,null,null,null,null,null,0,"","","","",0]
[null,null,null,null,null,null,null,null,null,null,null,0,"","","","",0]
[null,null,null,null,null,null,null,null,null,null,null,0,"","","","",0]
[null,null,null,null,null,null,null,null,null,null,null,0,"","","","",0]
[null,null,null,null,null,null,null,null,null,null,null,0,"","","","",0]
[null,null,null,null,null,null,null,null,null,null,null,0,"","","","",0]
[null,null,null,null,null,null,null,null,null,null,null,0,"","","","",0]
[null,null,null,null,null,null,null,null,null,null,null,0,"","","","",0]
[null,null,null,null,null,null,null,null,null,null,null,0,"","","","",0]
[null,null,null,null,null,null,null,null,null,null,null,0,"","","","",0]
[null,null,null,null,null,null,null,null,null,null,null,0,"","","","",0]
[null,null,null,null,null,null,null,null,null,null,null,0,"","","","",0]
[null,null,null,null,null,null,null,null,null,null,null,0,"","","","",0]
[null,null,null,null,null,null,null,null,null,null,null,0,"","","","",0]
[null,null,null,null,null,null,null,null,null,null,null,0,"","","","",0]
[null,null,null,null,null,null,null,null,null,null,null,0,"","","","",0]
[null,null,null,null,null,null,null,null,null,null,null,0,"","","","",0]
[null,null,null,null,null,null,null,null,null,null,null,0,"","","","",0]
[null,null,null,null,null,null,null,null,null,null,null,0,"","","","",0]
[null,null,null,null,null,null,null,null,null,null,null,0,"","","","",0]
[null,null,null,null,null,null,null,null,null,null,null,0,"","","","",0]
[null,null,null,null,null,null,null,null,null,null,null,0,"","","","",0]
[null,null,null,null,null,null,null,null,null,null,null,0,"","","","",0]
[null,null,null,null,null,null,null,null,null,null,null,0,"","","","",0]
[null,null,null,null,null,null,null,null,null,null,null,0,"","","","",0]
[null,null,null,null,null,null,null,null,null,null,null,0,"","","","",0]
[null,null,null,null,null,null,null,null,null,null,null,0,"","","","",0]
[null,null,null,null,null,null,null,null,null,null,null,0,"","","","",0]
[null,null,null,null,null,null,null,null,null,null,null,0,"","","","",0]
[null,null,null,null,null,null,null,null,null,null,null,0,"","","","",0]
[null,null,null,null,null,null,null,null,null,null,null,0,"","","","",0]
[null,null,null,null,null,null,null,null,null,null,null,0,"","","","",0]
[null,null,null,null,null,null,null,null,null,null,null,0,"","","","",0]
[null,null,null,null,null,null,null,null,null,null,null,0,"","","","",0]
[null,null,null,null,null,null,null,null,null,null,null,0,"","","","",0]
[null,null,null,null,null,null,null,null,null,null,null,0,"","","","",0]
[null,null,null,null,null,null,null,null,null,null,null,0,"","","","",0]
[null,null,null,null,null,null,null,null,null,null,null,0,"","","","",0]
[null,null,null,null,null,null,null,null,null,null,null,0,"","","","",0]
[null,null,null,null,null,null,null,null,null,null,null,0,"","","","",0]
[null,null,null,null,null,null,null,null,null,null,null,0,"","","","",0]
[null,null,null,null,null,null,null,null,null,null,null,0,"","","","",0]
[null,null,null,null,null,null,null,null,null,null,null,0,"","","","",0]
[null,null,null,null,null,null,null,null,null,null,null,0,"","","","",0]
[null,null,null,null,null,null,null,null,null,null,null,0,"","","","",0]
[null,null,null,null,null,null,null,null,null,null,null,0,"","","","",0]
[null,null,null,null,null,null,null,null,null,null,null,0,"","","","",0]
[null,null,null,null,null,null,null,null,null,null,null,0,"","","","",0]
[null,null,null,null,null,null,null,null,null,null,null,0,"","","","",0]
[null,null,null,null,null,null,null,null,null,null,null,0,"","","","",0]
[null,null,null,null,null,null,null,null,null,null,null,0,"","","","",0]
[null,null,null,null,null,null,null,null,null,null,null,0,"","","","",0]
[null,null,null,null,null,null,null,null,null,null,null,0,"","","","",0]
[null,null,null,null,null,null,null,null,null,null,null,0,"","","","",0]
[null,null,null,null,null,null,null,null,null,null,null,0,"","","","",0]
[null,null,null,null,null,null,null,null,null,null,null,0,"","","","",0]
[null,null,null,null,null,null,null,null,null,null,null,0,"","","","",0]
[null,null,null,null,null,null,null,null,null,null,null,0,"","","","",0]
[null,null,null,null,null,null,null,null,null,null,null,0,"","","","",0]
[null,null,null,null,null,null,null,null,null,null,null,0,"","","","",0]
[null,null,null,null,null,null,null,null,null,null,null,0,"","","","",0]
[null,null,null,null,null,null,null,null,null,null,null,0,{"$f":"IF(K844=\"\",\"\",IF(K844=\"P\",0,1))","v":""},{"$f":"IF(K844=\"\",\"\",1)","v":""},{"$f":"IF(A844=\"\",\"\",MONTH(A844))","v":""},{"$f":"IF(A844=\"\",\"\",IF(O844=1,\"Janvier\",IF(O844=2,\"Février\",IF(O844=3,\"Mars\",IF(O844=4,\"Avril\",IF(O844=5,\"Mai\",IF(O844=6,\"Juin\",IF(O844=7,\"Juillet\",IF(O844=8,\"Août\",IF(O844=9,\"Septembre\",IF(O844=10,\"Octobre\",IF(O844=11,\"Novembre\",IF(O844=12,\"Décembre\",\"PB\")))))))))))))","v":""},0]
[null,null,null,null,null,null,null,null,null,null,null,{"$f":"IF(K845=\"G\",I845*J845-J845,-J845)","v":0},"","","","",{"$f":"Q844+L845","v":0}]
[null,null,null,null,null,null,null,null,null,null,null,0,"","","","",0]
[null,null,null,null,null,null,null,null,null,null,null,0,"","","","",0]
[null,null,null,null,null,null,null,null,null,null,null,0,"","","","",0]
[null,null,null,null,null,null,null,null,null,null,null,0,"","","","",0]
[null,null,null,null,null,null,null,null,null,null,null,0,"","","","",0]
[null,null,null,null,null,null,null,null,null,null,null,0,"","","","",0]
[null,null,null,null,null,null,null,null,null,null,null,0,"","","","",0]
[null,null,null,null,null,null,null,null,null,null,null,0,"","","","",0]
[null,null,null,null,null,null,null,null,null,null,null,0,"","","","",0]
[null,null,null,null,null,null,null,null,null,null,null,0,"","","","",0]
[null,null,null,null,null,null,null,null,null,null,null,0,"","","","",0]
[null,null,null,null,null,null,null,null,null,null,null,0,"","","","",0]
[null,null,null,null,null,null,null,null,null,null,null,0,"","","","",0]
[null,null,null,null,null,null,null,null,null,null,null,0,"","","","",0]
[null,null,null,null,null,null,null,null,null,null,null,0,"","","","",0]
[null,null,null,null,null,null,null,null,null,null,null,0,"","","","",0]
[null,null,null,null,null,null,null,null,null,null,null,0,"","","","",0]
[null,null,null,null,null,null,null,null,null,null,null,0,"","","","",0]
[null,null,null,null,null,null,null,null,null,null,null,0,"","","","",0]
[null,null,null,null,null,null,null,null,null,null,null,0,"","","","",0]
[null,null,null,null,null,null,null,null,null,null,null,0,"","","","",0]
[null,null,null,null,null,null,null,null,null,null,null,0,"","","","",0]
[null,null,null,null,null,null,null,null,null,null,null,0,"","","","",0]
[null,null,null,null,null,null,null,null,null,null,null,0,"","","","",0]
[null,null,null,null,null,null,null,null,null,null,null,0,"","","","",0]
[null,null,null,null,null,null,null,null,null,null,null,0,"","","","",0]
[null,null,null,null,null,null,null,null,null,null,null,0,"","","","",0]
[null,null,null,null,null,null,null,null,null,null,null,0,"","","","",0]
[null,null,null,null,null,null,null,null,null,null,null,0,"","","","",0]
[null,null,null,null,null,null,null,null,null,null,null,0,"","","","",0]
[null,null,null,null,null,null,null,null,null,null,null,0,"","","","",0]
[null,null,null,null,null,null,null,null,null,null,null,0,"","","","",0]
[null,null,null,null,null,null,null,null,null,null,null,0,"","","","",0]
[null,null,null,null,null,null,null,null,null,null,null,0,"","","","",0]
[null,null,null,null,null,null,null,null,null,null,null,0,"","","","",0]
[null,null,null,null,null,null,null,null,null,null,null,0,"","","","",0]
[null,null,null,null,null,null,null,null,null,null,null,0,"","","","",0]
[null,null,null,null,null,null,null,null,null,null,null,0,"","","","",0]
[null,null,null,null,null,null,null,null,null,null,null,0,"","","","",0]
[null,null,null,null,null,null,null,null,null,null,null,0,"","","","",0]
[null,null,null,null,null,null,null,null,null,null,null,0,"","","","",0]
[null,null,null,null,null,null,null,null,null,null,null,0,"","","","",0]
[null,null,null,null,null,null,null,null,null,null,null,0,"","","","",0]
[null,null,null,null,null,null,null,null,null,null,null,0,"","","","",0]
[null,null,null,null,null,null,null,null,null,null,null,0,"","","","",0]
[null,null,null,null,null,null,null,null,null,null,null,0,"","","","",0]
[null,null,null,null,null,null,null,null,null,null,null,0,"","","","",0]
[null,null,null,null,null,null,null,null,null,null,null,0,"","","","",0]
[null,null,null,null,null,null,null,null,null,null,null,0,"","","","",0]
[null,null,null,null,null,null,null,null,null,null,null,0,"","","","",0]
[null,null,null,null,null,null,null,null,null,null,null,0,"","","","",0]
[null,null,null,null,null,null,null,null,null,null,null,0,"","","","",0]
[null,null,null,null,null,null,null,null,null,null,null,0,"","","","",0]
[null,null,null,null,null,null,null,null,null,null,null,0,"","","","",0]
[null,null,null,null,null,null,null,null,null,null,null,0,"","","","",0]
[null,null,null,null,null,null,null,null,null,null,null,0,"","","","",0]
[null,null,null,null,null,null,null,null,null,null,null,0,"","","","",0]
[null,null,null,null,null,null,null,null,null,null,null,0,"","","","",0]
[null,null,null,null,null,null,null,null,null,null,null,0,"","","","",0]
[null,null,null,null,null,null,null,null,null,null,null,0,"","","","",0]
[null,null,null,null,null,null,null,null,null,null,null,0,"","","","",0]
[null,null,null,null,null,null,null,null,null,null,null,0,"","","","",0]
[null,null,null,null,null,null,null,null,null,null,null,0,{"$f":"IF(K908=\"\",\"\",IF(K908=\"P\",0,1))","v":""},{"$f":"IF(K908=\"\",\"\",1)","v":""},{"$f":"IF(A908=\"\",\"\",MONTH(A908))","v":""},{"$f":"IF(A908=\"\",\"\",IF(O908=1,\"Janvier\",IF(O908=2,\"Février\",IF(O908=3,\"Mars\",IF(O908=4,\"Avril\",IF(O908=5,\"Mai\",IF(O908=6,\"Juin\",IF(O908=7,\"Juillet\",IF(O908=8,\"Août\",IF(O908=9,\"Septembre\",IF(O908=10,\"Octobre\",IF(O908=11,\"Novembre\",IF(O908=12,\"Décembre\",\"PB\")))))))))))))","v":""},0]
[null,null,null,null,null,null,null,null,null,null,null,{"$f":"IF(K909=\"G\",I909*J909-J909,-J909)","v":0},"","","","",{"$f":"Q908+L909","v":0}]
[null,null,null,null,null,null,null,null,null,null,null,0,"","","","",0]
[null,null,null,null,null,null,null,null,null,null,null,0,"","","","",0]
[null,null,null,null,null,null,null,null,null,null,null,0,"","","","",0]
[null,null,null,null,null,null,null,null,null,null,null,0,"","","","",0]
[null,null,null,null,null,null,null,null,null,null,null,0,"","","","",0]
[null,null,null,null,null,null,null,null,null,null,null,0,"","","","",0]
[null,null,null,null,null,null,null,null,null,null,null,0,"","","","",0]
[null,null,null,null,null,null,null,null,null,null,null,0,"","","","",0]
[null,null,null,null,null,null,null,null,null,null,null,0,"","","","",0]
[null,null,null,null,null,null,null,null,null,null,null,0,"","","","",0]
[null,null,null,null,null,null,null,null,null,null,null,0,"","","","",0]
[null,null,null,null,null,null,null,null,null,null,null,0,"","","","",0]
[null,null,null,null,null,null,null,null,null,null,null,0,"","","","",0]
[null,null,null,null,null,null,null,null,null,null,null,0,"","","","",0]
[null,null,null,null,null,null,null,null,null,null,null,0,"","","","",0]
[null,null,null,null,null,null,null,null,null,null,null,0,"","","","",0]
[null,null,null,null,null,null,null,null,null,null,null,0,"","","","",0]
[null,null,null,null,null,null,null,null,null,null,null,0,"","","","",0]
[null,null,null,null,null,null,null,null,null,null,null,0,"","","","",0]
[null,null,null,null,null,null,null,null,null,null,null,0,"","","","",0]
[null,null,null,null,null,null,null,null,null,null,null,0,"","","","",0]
[null,null,null,null,null,null,null,null,null,null,null,0,"","","","",0]
[null,null,null,null,null,null,null,null,null,null,null,0,"","","","",0]
[null,null,null,null,null,null,null,null,null,null,null,0,"","","","",0]
[null,null,null,null,null,null,null,null,null,null,null,0,"","","","",0]
[null,null,null,null,null,null,null,null,null,null,null,0,"","","","",0]
[null,null,null,null,null,null,null,null,null,null,null,0,"","","","",0]
[null,null,null,null,null,null,null,null,null,null,null,0,"","","","",0]
[null,null,null,null,null,null,null,null,null,null,null,0,"","","","",0]
[null,null,null,null,null,null,null,null,null,null,null,0,"","","","",0]
[null,null,null,null,null,null,null,null,null,null,null,0,"","","","",0]
[null,null,null,null,null,null,null,null,null,null,null,0,"","","","",0]
[null,null,null,null,null,null,null,null,null,null,null,0,"","","","",0]
[null,null,null,null,null,null,null,null,null,null,null,0,"","","","",0]
[null,null,null,null,null,null,null,null,null,null,null,0,"","","","",0]
[null,null,null,null,null,null,null,null,null,null,null,0,"","","","",0]
[null,null,null,null,null,null,null,null,null,null,null,0,"","","","",0]
[null,null,null,null,null,null,null,null,null,null,null,0,"","","","",0]
[null,null,null,null,null,null,null,null,null,null,null,0,"","","","",0]
[null,null,null,null,null,null,null,null,null,null,null,0,"","","","",0]
[null,null,null,null,null,null,null,null,null,null,null,0,"","","","",0]
[null,null,null,null,null,null,null,null,null,null,null,0,"","","","",0]
[null,null,null,null,null,null,null,null,null,null,null,0,"","","","",0]
[null,null,null,null,null,null,null,null,null,null,null,0,"","","","",0]
[null,null,null,null,null,null,null,null,null,null,null,0,"","","","",0]
[null,null,null,null,null,null,null,null,null,null,null,0,"","","","",0]
[null,null,null,null,null,null,null,null,null,null,null,0,"","","","",0]
[null,null,null,null,null,null,null,null,null,null,null,0,"","","","",0]
[null,null,null,null,null,null,null,null,null,null,null,0,"","","","",0]
[null,null,null,null,null,null,null,null,null,null,null,0,"","","","",0]
[null,null,null,null,null,null,null,null,null,null,null,0,"","","","",0]
[null,null,null,null,null,null,null,null,null,null,null,0,"","","","",0]
[null,null,null,null,null,null,null,null,null,null,null,0,"","","","",0]
[null,null,null,null,null,null,null,null,null,null,null,0,"","","","",0]
[null,null,null,null,null,null,null,null,null,null,null,0,"","","","",0]
[null,null,null,null,null,null,null,null,null,null,null,0,"","","","",0]
[null,null,null,null,null,null,null,null,null,null,null,0,"","","","",0]
[null,null,null,null,null,null,null,null,null,null,null,0,"","","","",0]
[null,null,null,null,null,null,null,null,null,null,null,0,"","","","",0]
[null,null,null,null,null,null,null,null,null,null,null,0,"","","","",0]
[null,null,null,null,null,null,null,null,null,null,null,0,"","","","",0]
[null,null,null,null,null,null,null,null,null,null,null,0,"","","","",0]
[null,null,null,null,null,null,null,null,null,null,null,0,{"$f":"IF(K972=\"\",\"\",IF(K972=\"P\",0,1))","v":""},{"$f":"IF(K972=\"\",\"\",1)","v":""},{"$f":"IF(A972=\"\",\"\",MONTH(A972))","v":""},{"$f":"IF(A972=\"\",\"\",IF(O972=1,\"Janvier\",IF(O972=2,\"Février\",IF(O972=3,\"Mars\",IF(O972=4,\"Avril\",IF(O972=5,\"Mai\",IF(O972=6,\"Juin\",IF(O972=7,\"Juillet\",IF(O972=8,\"Août\",IF(O972=9,\"Septembre\",IF(O972=10,\"Octobre\",IF(O972=11,\"Novembre\",IF(O972=12,\"Décembre\",\"PB\")))))))))))))","v":""},0]
[null,null,null,null,null,null,null,null,null,null,null,{"$f":"IF(K973=\"G\",I973*J973-J973,-J973)","v":0},"","","","",{"$f":"Q972+L973","v":0}]
[null,null,null,null,null,null,null,null,null,null,null,0,"","","","",0]
[null,null,null,null,null,null,null,null,null,null,null,0,"","","","",0]
[null,null,null,null,null,null,null,null,null,null,null,0,"","","","",0]
[null,null,null,null,null,null,null,null,null,null,null,0,"","","","",0]
[null,null,null,null,null,null,null,null,null,null,null,0,"","","","",0]
[null,null,null,null,null,null,null,null,null,null,null,0,"","","","",0]
[null,null,null,null,null,null,null,null,null,null,null,0,"","","","",0]
[null,null,null,null,null,null,null,null,null,null,null,0,"","","","",0]
[null,null,null,null,null,null,null,null,null,null,null,0,"","","","",0]
[null,null,null,null,null,null,null,null,null,null,null,0,"","","","",0]
[null,null,null,null,null,null,null,null,null,null,null,0,"","","","",0]
[null,null,null,null,null,null,null,null,null,null,null,0,"","","","",0]
[null,null,null,null,null,null,null,null,null,null,null,0,"","","","",0]
[null,null,null,null,null,null,null,null,null,null,null,0,"","","","",0]
[null,null,null,null,null,null,null,null,null,null,null,0,"","","","",0]
[null,null,null,null,null,null,null,null,null,null,null,0,"","","","",0]
[null,null,null,null,null,null,null,null,null,null,null,0,"","","","",0]
[null,null,null,null,null,null,null,null,null,null,null,0,"","","","",0]
[null,null,null,null,null,null,null,null,null,null,null,0,"","","","",0]
[null,null,null,null,null,null,null,null,null,null,null,0,"","","","",0]
[null,null,null,null,null,null,null,null,null,null,null,0,"","","","",0]
[null,null,null,null,null,null,null,null,null,null,null,0,"","","","",0]
[null,null,null,null,null,null,null,null,null,null,null,0,"","","","",0]
[null,null,null,null,null,null,null,null,null,null,null,0,"","","","",0]
[null,null,null,null,null,null,null,null,null,null,null,0,"","","","",0]
[null,null,null,null,null,null,null,null,null,null,null,0,"","","","",0]
[null,null,null,null,null,null,null,null,null,null,null,0,"","","","",0]
[null,null,null,null,null,null,null,null,null,null,null,0,"","","","",0]
[null,null,null,null,null,null,null,null,null,null,null,0,"","","","",0]
[null,null,null,null,null,null,null,null,null,null,null,0,"","","","",0]
[null,null,null,null,null,null,null,null,null,null,null,0,"","","","",0]
[null,null,null,null,null,null,null,null,null,null,null,0,"","","","",0]
[null,null,null,null,null,null,null,null,null,null,null,0,"","","","",0]
[null,null,null,null,null,null,null,null,null,null,null,0,"","","","",0]
[null,null,null,null,null,null,null,null,null,null,null,0,"","","","",0]
[null,null,null,null,null,null,null,null,null,null,null,0,"","","","",0]
[null,null,null,null,null,null,null,null,null,null,null,0,"","","","",0]
[null,null,null,null,null,null,null,null,null,null,null,0,"","","","",0]
[null,null,null,null,null,null,null,null,null,null,null,0,"","","","",0]
[null,null,null,null,null,null,null,null,null,null,null,0,"","","","",0]
[null,null,null,null,null,null,null,null,null,null,null,0,"","","","",0]
[null,null,null,null,null,null,null,null,null,null,null,0,"","","","",0]
[null,null,null,null,null,null,null,null,null,null,null,0,"","","","",0]
[null,null,null,null,null,null,null,null,null,null,null,0,"","","","",0]
[null,null,null,null,null,null,null,null,null,null,null,0,"","","","",0]
[null,null,null,null,null,null,null,null,null,null,null,0,"","","","",0]
[null,null,null,null,null,null,null,null,null,null,null,0,"","","","",0]
[null,null,null,null,null,null,null,null,null,null,null,0,"","","","",0]
[null,null,null,null,null,null,null,null,null,null,null,0,"","","","",0]
[null,null,null,null,null,null,null,null,null,null,null,0,"","","","",0]
[null,null,null,null,null,null,null,null,null,null,null,0,"","","","",0]
[null,null,null,null,null,null,null,null,null,null,null,0,"","","","",0]
[null,null,null,null,null,null,null,null,null,null,null,0,"","","","",0]
[null,null,null,null,null,null,null,null,null,null,null,0,"","","","",0]
[null,null,null,null,null,null,null,null,null,null,null,0,"","","","",0]
[null,null,null,null,null,null,null,null,null,null,null,0,"","","","",0]
[null,null,null,null,null,null,null,null,null,null,null,0,"","","","",0]
[null,null,null,null,null,null,null,null,null,null,null,0,"","","","",0]
[null,null,null,null,null,null,null,null,null,null,null,0,"","","","",0]
[null,null,null,null,null,null,null,null,null,null,null,0,"","","","",0]
[null,null,null,null,null,null,null,null,null,null,null,0,"","","","",0]
[null,null,null,null,null,null,null,null,null,null,null,0,"","","","",0]
[null,null,null,null,null,null,null,null,null,null,null,0,{"$f":"IF(K1036=\"\",\"\",IF(K1036=\"P\",0,1))","v":""},{"$f":"IF(K1036=\"\",\"\",1)","v":""},{"$f":"IF(A1036=\"\",\"\",MONTH(A1036))","v":""},{"$f":"IF(A1036=\"\",\"\",IF(O1036=1,\"Janvier\",IF(O1036=2,\"Février\",IF(O1036=3,\"Mars\",IF(O1036=4,\"Avril\",IF(O1036=5,\"Mai\",IF(O1036=6,\"Juin\",IF(O1036=7,\"Juillet\",IF(O1036=8,\"Août\",IF(O1036=9,\"Septembre\",IF(O1036=10,\"Octobre\",IF(O1036=11,\"Novembre\",IF(O1036=12,\"Décembre\",\"PB\")))))))))))))","v":""},0]
[null,null,null,null,null,null,null,null,null,null,null,{"$f":"IF(K1037=\"G\",I1037*J1037-J1037,-J1037)","v":0},"","","","",{"$f":"Q1036+L1037","v":0}]
[null,null,null,null,null,null,null,null,null,null,null,0,"","","","",0]
[null,null,null,null,null,null,null,null,null,null,null,0,"","","","",0]
[null,null,null,null,null,null,null,null,null,null,null,0,"","","","",0]
[null,null,null,null,null,null,null,null,null,null,null,0,"","","","",0]
[null,null,null,null,null,null,null,null,null,null,null,0,"","","","",0]
[null,null,null,null,null,null,null,null,null,null,null,0,"","","","",0]
[null,null,null,null,null,null,null,null,null,null,null,0,"","","","",0]
[null,null,null,null,null,null,null,null,null,null,null,0,"","","","",0]
[null,null,null,null,null,null,null,null,null,null,null,0,"","","","",0]
[null,null,null,null,null,null,null,null,null,null,null,0,"","","","",0]
[null,null,null,null,null,null,null,null,null,null,null,0,"","","","",0]
[null,null,null,null,null,null,null,null,null,null,null,0,"","","","",0]
[null,null,null,null,null,null,null,null,null,null,null,0,"","","","",0]
[null,null,null,null,null,null,null,null,null,null,null,0,"","","","",0]
[null,null,null,null,null,null,null,null,null,null,null,0,"","","","",0]
[null,null,null,null,null,null,null,null,null,null,null,0,"","","","",0]
[null,null,null,null,null,null,null,null,null,null,null,0,"","","","",0]
[null,null,null,null,null,null,null,null,null,null,null,0,"","","","",0]
[null,null,null,null,null,null,null,null,null,null,null,0,"","","","",0]
[null,null,null,null,null,null,null,null,null,null,null,0,"","","","",0]
[null,null,null,null,null,null,null,null,null,null,null,0,"","","","",0]
[null,null,null,null,null,null,null,null,null,null,null,0,"","","","",0]
[null,null,null,null,null,null,null,null,null,null,null,0,"","","","",0]
[null,null,null,null,null,null,null,null,null,null,null,0,"","","","",0]
[null,null,null,null,null,null,null,null,null,null,null,0,"","","","",0]
[null,null,null,null,null,null,null,null,null,null,null,0,"","","","",0]
[null,null,null,null,null,null,null,null,null,null,null,0,"","","","",0]
[null,null,null,null,null,null,null,null,null,null,null,0,"","","","",0]
[null,null,null,null,null,null,null,null,null,null,null,0,"","","","",0]
[null,null,null,null,null,null,null,null,null,null,null,0,"","","","",0]
[null,null,null,null,null,null,null,null,null,null,null,0,"","","","",0]
[null,null,null,null,null,null,null,null,null,null,null,0,"","","","",0]
[null,null,null,null,null,null,null,null,null,null,null,0,"","","","",0]
[null,null,null,null,null,null,null,null,null,null,null,0,"","","","",0]
[null,null,null,null,null,null,null,null,null,null,null,0,"","","","",0]
[null,null,null,null,null,null,null,null,null,null,null,0,"","","","",0]
[null,null,null,null,null,null,null,null,null,null,null,0,"","","","",0]
[null,null,null,null,null,null,null,null,null,null,null,0,"","","","",0]
[null,null,null,null,null,null,null,null,null,null,null,0,"","","","",0]
[null,null,null,null,null,null,null,null,null,null,null,0,"","","","",0]
[null,null,null,null,null,null,null,null,null,null,null,0,"","","","",0]
[null,null,null,null,null,null,null,null,null,null,null,0,"","","","",0]
[null,null,null,null,null,null,null,null,null,null,null,0,"","","","",0]
[null,null,null,null,null,null,null,null,null,null,null,0,"","","","",0]
[null,null,null,null,null,null,null,null,null,null,null,0,"","","","",0]
[null,null,null,null,null,null,null,null,null,null,null,0,"","","","",0]
[null,null,null,null,null,null,null,null,null,null,null,0,"","","","",0]
[null,null,null,null,null,null,null,null,null,null,null,0,"","","","",0]
[null,null,null,null,null,null,null,null,null,null,null,0,"","","","",0]
[null,null,null,null,null,null,null,null,null,null,null,0,"","","","",0]
[null,null,null,null,null,null,null,null,null,null,null,0,"","","","",0]
[null,null,null,null,null,null,null,null,null,null,null,0,"","","","",0]
[null,null,null,null,null,null,null,null,null,null,null,0,"","","","",0]
[null,null,null,null,null,null,null,null,null,null,null,0,"","","","",0]
[null,null,null,null,null,null,null,null,null,null,null,0,"","","","",0]
[null,null,null,null,null,null,null,null,null,null,null,0,"","","","",0]
[null,null,null,null,null,null,null,null,null,null,null,0,"","","","",0]
[null,null,null,null,null,null,null,null,null,null,null,0,"","","","",0]
[null,null,null,null,null,null,null,null,null,null,null,0,"","","","",0]
[null,null,null,null,null,null,null,null,null,null,null,0,"","","","",0]
[null,null,null,null,null,null,null,null,null,null,null,0,"","","","",0]
[null,null,null,null,null,null,null,null,null,null,null,0,"","","","",0]
[null,null,null,null,null,null,null,null,null,null,null,0,{"$f":"IF(K1100=\"\",\"\",IF(K1100=\"P\",0,1))","v":""},{"$f":"IF(K1100=\"\",\"\",1)","v":""},{"$f":"IF(A1100=\"\",\"\",MONTH(A1100))","v":""},{"$f":"IF(A1100=\"\",\"\",IF(O1100=1,\"Janvier\",IF(O1100=2,\"Février\",IF(O1100=3,\"Mars\",IF(O1100=4,\"Avril\",IF(O1100=5,\"Mai\",IF(O1100=6,\"Juin\",IF(O1100=7,\"Juillet\",IF(O1100=8,\"Août\",IF(O1100=9,\"Septembre\",IF(O1100=10,\"Octobre\",IF(O1100=11,\"Novembre\",IF(O1100=12,\"Décembre\",\"PB\")))))))))))))","v":""},0]
[null,null,null,null,null,null,null,null,null,null,null,{"$f":"IF(K1101=\"G\",I1101*J1101-J1101,-J1101)","v":0},"","","","",{"$f":"Q1100+L1101","v":0}]
[null,null,null,null,null,null,null,null,null,null,null,0,"","","","",0]
[null,null,null,null,null,null,null,null,null,null,null,0,"","","","",0]
[null,null,null,null,null,null,null,null,null,null,null,0,"","","","",0]
[null,null,null,null,null,null,null,null,null,null,null,0,"","","","",0]
[null,null,null,null,null,null,null,null,null,null,null,0,"","","","",0]
[null,null,null,null,null,null,null,null,null,null,null,0,"","","","",0]
[null,null,null,null,null,null,null,null,null,null,null,0,"","","","",0]
[null,null,null,null,null,null,null,null,null,null,null,0,"","","","",0]
[null,null,null,null,null,null,null,null,null,null,null,0,"","","","",0]
[null,null,null,null,null,null,null,null,null,null,null,0,"","","","",0]
[null,null,null,null,null,null,null,null,null,null,null,0,"","","","",0]
[null,null,null,null,null,null,null,null,null,null,null,0,"","","","",0]
[null,null,null,null,null,null,null,null,null,null,null,0,"","","","",0]
[null,null,null,null,null,null,null,null,null,null,null,0,"","","","",0]
[null,null,null,null,null,null,null,null,null,null,null,0,"","","","",0]
[null,null,null,null,null,null,null,null,null,null,null,0,"","","","",0]
[null,null,null,null,null,null,null,null,null,null,null,0,"","","","",0]
[null,null,null,null,null,null,null,null,null,null,null,0,"","","","",0]
[null,null,null,null,null,null,null,null,null,null,null,0,"","","","",0]
[null,null,null,null,null,null,null,null,null,null,null,0,"","","","",0]
[null,null,null,null,null,null,null,null,null,null,null,0,"","","","",0]
[null,null,null,null,null,null,null,null,null,null,null,0,"","","","",0]
[null,null,null,null,null,null,null,null,null,null,null,0,"","","","",0]
[null,null,null,null,null,null,null,null,null,null,null,0,"","","","",0]
[null,null,null,null,null,null,null,null,null,null,null,0,"","","","",0]
[null,null,null,null,null,null,null,null,null,null,null,0,"","","","",0]
[null,null,null,null,null,null,null,null,null,null,null,0,"","","","",0]
[null,null,null,null,null,null,null,null,null,null,null,0,"","","","",0]
[null,null,null,null,null,null,null,null,null,null,null,0,"","","","",0]
[null,null,null,null,null,null,null,null,null,null,null,0,"","","","",0]
[null,null,null,null,null,null,null,null,null,null,null,0,"","","","",0]
[null,null,null,null,null,null,null,null,null,null,null,0,"","","","",0]
[null,null,null,null,null,null,null,null,null,null,null,0,"","","","",0]
[null,null,null,null,null,null,null,null,null,null,null,0,"","","","",0]
[null,null,null,null,null,null,null,null,null,null,null,0,"","","","",0]
[null,null,null,null,null,null,null,null,null,null,null,0,"","","","",0]
[null,null,null,null,null,null,null,null,null,null,null,0,"","","","",0]
[null,null,null,null,null,null,null,null,null,null,null,0,"","","","",0]
[null,null,null,null,null,null,null,null,null,null,null,0,"","","","",0]
[null,null,null,null,null,null,null,null,null,null,null,0,"","","","",0]
[null,null,null,null,null,null,null,null,null,null,null,0,"","","","",0]
[null,null,null,null,null,null,null,null,null,null,null,0,"","","","",0]
[null,null,null,null,null,null,null,null,null,null,null,0,"","","","",0]
[null,null,null,null,null,null,null,null,null,null,null,0,"","","","",0]
[null,null,null,null,null,null,null,null,null,null,null,0,"","","","",0]
[null,null,null,null,null,null,null,null,null,null,null,0,"","","","",0]
[null,null,null,null,null,null,null,null,null,null,null,0,"","","","",0]
[null,null,null,null,null,null,null,null,null,null,null,0,"","","","",0]
[null,null,null,null,null,null,null,null,null,null,null,0,"","","","",0]
[null,null,null,null,null,null,null,null,null,null,null,0,"","","","",0]
[null,null,null,null,null,null,null,null,null,null,null,0,"","","","",0]
[null,null,null,null,null,null,null,null,null,null,null,0,"","","","",0]
[null,null,null,null,null,null,null,null,null,null,null,0,"","","","",0]
[null,null,null,null,null,null,null,null,null,null,null,0,"","","","",0]
[null,null,null,null,null,null,null,null,null,null,null,0,"","","","",0]
[null,null,null,null,null,null,null,null,null,null,null,0,"","","","",0]
[null,null,null,null,null,null,null,null,null,null,null,0,"","","","",0]
[null,null,null,null,null,null,null,null,null,null,null,0,"","","","",0]
[null,null,null,null,null,null,null,null,null,null,null,0,"","","","",0]
[null,null,null,null,null,null,null,null,null,null,null,0,"","","","",0]
[null,null,null,null,null,null,null,null,null,null,null,0,"","","","",0]
[null,null,null,null,null,null,null,null,null,null,null,0,"","","","",0]
[null,null,null,null,null,null,null,null,null,null,null,0,{"$f":"IF(K1164=\"\",\"\",IF(K1164=\"P\",0,1))","v":""},{"$f":"IF(K1164=\"\",\"\",1)","v":""},{"$f":"IF(A1164=\"\",\"\",MONTH(A1164))","v":""},{"$f":"IF(A1164=\"\",\"\",IF(O1164=1,\"Janvier\",IF(O1164=2,\"Février\",IF(O1164=3,\"Mars\",IF(O1164=4,\"Avril\",IF(O1164=5,\"Mai\",IF(O1164=6,\"Juin\",IF(O1164=7,\"Juillet\",IF(O1164=8,\"Août\",IF(O1164=9,\"Septembre\",IF(O1164=10,\"Octobre\",IF(O1164=11,\"Novembre\",IF(O1164=12,\"Décembre\",\"PB\")))))))))))))","v":""},0]
[null,null,null,null,null,null,null,null,null,null,null,{"$f":"IF(K1165=\"G\",I1165*J1165-J1165,-J1165)","v":0},"","","","",{"$f":"Q1164+L1165","v":0}]
[null,null,null,null,null,null,null,null,null,null,null,0,"","","","",0]
[null,null,null,null,null,null,null,null,null,null,null,0,"","","","",0]
[null,null,null,null,null,null,null,null,null,null,null,0,"","","","",0]
[null,null,null,null,null,null,null,null,null,null,null,0,"","","","",0]
[null,null,null,null,null,null,null,null,null,null,null,0,"","","","",0]
[null,null,null,null,null,null,null,null,null,null,null,0,"","","","",0]
[null,null,null,null,null,null,null,null,null,null,null,0,"","","","",0]
[null,null,null,null,null,null,null,null,null,null,null,0,"","","","",0]
[null,null,null,null,null,null,null,null,null,null,null,0,"","","","",0]
[null,null,null,null,null,null,null,null,null,null,null,0,"","","","",0]
[null,null,null,null,null,null,null,null,null,null,null,0,"","","","",0]
[null,null,null,null,null,null,null,null,null,null,null,0,"","","","",0]
[null,null,null,null,null,null,null,null,null,null,null,0,"","","","",0]
[null,null,null,null,null,null,null,null,null,null,null,0,"","","","",0]
[null,null,null,null,null,null,null,null,null,null,null,0,"","","","",0]
[null,null,null,null,null,null,null,null,null,null,null,0,"","","","",0]
[null,null,null,null,null,null,null,null,null,null,null,0,"","","","",0]
[null,null,null,null,null,null,null,null,null,null,null,0,"","","","",0]
[null,null,null,null,null,null,null,null,null,null,null,0,"","","","",0]
[null,null,null,null,null,null,null,null,null,null,null,0,"","","","",0]
[null,null,null,null,null,null,null,null,null,null,null,0,"","","","",0]
[null,null,null,null,null,null,null,null,null,null,null,0,"","","","",0]
[null,null,null,null,null,null,null,null,null,null,null,0,"","","","",0]
[null,null,null,null,null,null,null,null,null,null,null,0,"","","","",0]
[null,null,null,null,null,null,null,null,null,null,null,0,"","","","",0]
[null,null,null,null,null,null,null,null,null,null,null,0,"","","","",0]
[null,null,null,null,null,null,null,null,null,null,null,0,"","","","",0]
[null,null,null,null,null,null,null,null,null,null,null,0,"","","","",0]
[null,null,null,null,null,null,null,null,null,null,null,0,"","","","",0]
[null,null,null,null,null,null,null,null,null,null,null,0,"","","","",0]
[null,null,null,null,null,null,null,null,null,null,null,0,"","","","",0]
[null,null,null,null,null,null,null,null,null,null,null,0,"","","","",0]
[null,null,null,null,null,null,null,null,null,null,null,0,"","","","",0]
[null,null,null,null,null,null,null,null,null,null,null,0,"","","","",0]
[null,null,null,null,null,null,null,null,null,null,null,0,"","","","",0]
[null,null,null,null,null,null,null,null,null,null,null,0,"","","","",0]
[null,null,null,null,null,null,null,null,null,null,null,0,"","","","",0]
[null,null,null,null,null,null,null,null,null,null,null,0,"","","","",0]
[null,null,null,null,null,null,null,null,null,null,null,0,"","","","",0]
[null,null,null,null,null,null,null,null,null,null,null,0,"","","","",0]
[null,null,null,null,null,null,null,null,null,null,null,0,"","","","",0]
[null,null,null,null,null,null,null,null,null,null,null,0,"","","","",0]
[null,null,null,null,null,null,null,null,null,null,null,0,"","","","",0]
[null,null,null,null,null,null,null,null,null,null,null,0,"","","","",0]
[null,null,null,null,null,null,null,null,null,null,null,0,"","","","",0]
[null,null,null,null,null,null,null,null,null,null,null,0,"","","","",0]
[null,null,null,null,null,null,null,null,null,null,null,0,"","","","",0]
[null,null,null,null,null,null,null,null,null,null,null,0,"","","","",0]
[null,null,null,null,null,null,null,null,null,null,null,0,"","","","",0]
[null,null,null,null,null,null,null,null,null,null,null,0,"","","","",0]
[null,null,null,null,null,null,null,null,null,null,null,0,"","","","",0]
[null,null,null,null,null,null,null,null,null,null,null,0,"","","","",0]
[null,null,null,null,null,null,null,null,null,null,null,0,"","","","",0]
[null,null,null,null,null,null,null,null,null,null,null,0,"","","","",0]
[null,null,null,null,null,null,null,null,null,null,null,0,"","","","",0]
[null,null,null,null,null,null,null,null,null,null,null,0,"","","","",0]
[null,null,null,null,null,null,null,null,null,null,null,0,"","","","",0]
[null,null,null,null,null,null,null,null,null,null,null,0,"","","","",0]
[null,null,null,null,null,null,null,null,null,null,null,0,"","","","",0]
[null,null,null,null,null,null,null,null,null,null,null,0,"","","","",0]
[null,null,null,null,null,null,null,null,null,null,null,0,"","","","",0]
[null,null,null,null,null,null,null,null,null,null,null,0,"","","","",0]
[null,null,null,null,null,null,null,null,null,null,null,0,{"$f":"IF(K1228=\"\",\"\",IF(K1228=\"P\",0,1))","v":""},{"$f":"IF(K1228=\"\",\"\",1)","v":""},{"$f":"IF(A1228=\"\",\"\",MONTH(A1228))","v":""},{"$f":"IF(A1228=\"\",\"\",IF(O1228=1,\"Janvier\",IF(O1228=2,\"Février\",IF(O1228=3,\"Mars\",IF(O1228=4,\"Avril\",IF(O1228=5,\"Mai\",IF(O1228=6,\"Juin\",IF(O1228=7,\"Juillet\",IF(O1228=8,\"Août\",IF(O1228=9,\"Septembre\",IF(O1228=10,\"Octobre\",IF(O1228=11,\"Novembre\",IF(O1228=12,\"Décembre\",\"PB\")))))))))))))","v":""},0]
[null,null,null,null,null,null,null,null,null,null,null,{"$f":"IF(K1229=\"G\",I1229*J1229-J1229,-J1229)","v":0},"","","","",{"$f":"Q1228+L1229","v":0}]
[null,null,null,null,null,null,null,null,null,null,null,0,"","","","",0]
[null,null,null,null,null,null,null,null,null,null,null,0,"","","","",0]
[null,null,null,null,null,null,null,null,null,null,null,0,"","","","",0]
[null,null,null,null,null,null,null,null,null,null,null,0,"","","","",0]
[null,null,null,null,null,null,null,null,null,null,null,0,"","","","",0]
[null,null,null,null,null,null,null,null,null,null,null,0,"","","","",0]
[null,null,null,null,null,null,null,null,null,null,null,0,"","","","",0]
[null,null,null,null,null,null,null,null,null,null,null,0,"","","","",0]
[null,null,null,null,null,null,null,null,null,null,null,0,"","","","",0]
[null,null,null,null,null,null,null,null,null,null,null,0,"","","","",0]
[null,null,null,null,null,null,null,null,null,null,null,0,"","","","",0]
[null,null,null,null,null,null,null,null,null,null,null,0,"","","","",0]
[null,null,null,null,null,null,null,null,null,null,null,0,"","","","",0]
[null,null,null,null,null,null,null,null,null,null,null,0,"","","","",0]
[null,null,null,null,null,null,null,null,null,null,null,0,"","","","",0]
[null,null,null,null,null,null,null,null,null,null,null,0,"","","","",0]
[null,null,null,null,null,null,null,null,null,null,null,0,"","","","",0]
[null,null,null,null,null,null,null,null,null,null,null,0,"","","","",0]
[null,null,null,null,null,null,null,null,null,null,null,0,"","","","",0]
[null,null,null,null,null,null,null,null,null,null,null,0,"","","","",0]
[null,null,null,null,null,null,null,null,null,null,null,0,"","","","",0]
[null,null,null,null,null,null,null,null,null,null,null,0,"","","","",0]
[null,null,null,null,null,null,null,null,null,null,null,0,"","","","",0]
[null,null,null,null,null,null,null,null,null,null,null,0,"","","","",0]
[null,null,null,null,null,null,null,null,null,null,null,0,"","","","",0]
[null,null,null,null,null,null,null,null,null,null,null,0,"","","","",0]
[null,null,null,null,null,null,null,null,null,null,null,0,"","","","",0]
[null,null,null,null,null,null,null,null,null,null,null,0,"","","","",0]
[null,null,null,null,null,null,null,null,null,null,null,0,"","","","",0]
[null,null,null,null,null,null,null,null,null,null,null,0,"","","","",0]
[null,null,null,null,null,null,null,null,null,null,null,0,"","","","",0]
[null,null,null,null,null,null,null,null,null,null,null,0,"","","","",0]
[null,null,null,null,null,null,null,null,null,null,null,0,"","","","",0]
[null,null,null,null,null,null,null,null,null,null,null,0,"","","","",0]
[null,null,null,null,null,null,null,null,null,null,null,0,"","","","",0]
[null,null,null,null,null,null,null,null,null,null,null,0,"","","","",0]
[null,null,null,null,null,null,null,null,null,null,null,0,"","","","",0]
[null,null,null,null,null,null,null,null,null,null,null,0,"","","","",0]
[null,null,null,null,null,null,null,null,null,null,null,0,"","","","",0]
[null,null,null,null,null,null,null,null,null,null,null,0,"","","","",0]
[null,null,null,null,null,null,null,null,null,null,null,0,"","","","",0]
[null,null,null,null,null,null,null,null,null,null,null,0,"","","","",0]
[null,null,null,null,null,null,null,null,null,null,null,0,"","","","",0]
[null,null,null,null,null,null,null,null,null,null,null,0,"","","","",0]
[null,null,null,null,null,null,null,null,null,null,null,0,"","","","",0]
[null,null,null,null,null,null,null,null,null,null,null,0,"","","","",0]
[null,null,null,null,null,null,null,null,null,null,null,0,"","","","",0]
[null,null,null,null,null,null,null,null,null,null,null,0,"","","","",0]
[null,null,null,null,null,null,null,null,null,null,null,0,"","","","",0]
[null,null,null,null,null,null,null,null,null,null,null,0,"","","","",0]
[null,null,null,null,null,null,null,null,null,null,null,0,"","","","",0]
[null,null,null,null,null,null,null,null,null,null,null,0,"","","","",0]
[null,null,null,null,null,null,null,null,null,null,null,0,"","","","",0]
[null,null,null,null,null,null,null,null,null,null,null,0,"","","","",0]
[null,null,null,null,null,null,null,null,null,null,null,0,"","","","",0]
[null,null,null,null,null,null,null,null,null,null,null,0,"","","","",0]
[null,null,null,null,null,null,null,null,null,null,null,0,"","","","",0]
[null,null,null,null,null,null,null,null,null,null,null,0,"","","","",0]
[null,null,null,null,null,null,null,null,null,null,null,0,"","","","",0]
[null,null,null,null,null,null,null,null,null,null,null,0,"","","","",0]
[null,null,null,null,null,null,null,null,null,null,null,0,"","","","",0]
[null,null,null,null,null,null,null,null,null,null,null,0,"","","","",0]
[null,null,null,null,null,null,null,null,null,null,null,0,{"$f":"IF(K1292=\"\",\"\",IF(K1292=\"P\",0,1))","v":""},{"$f":"IF(K1292=\"\",\"\",1)","v":""},{"$f":"IF(A1292=\"\",\"\",MONTH(A1292))","v":""},{"$f":"IF(A1292=\"\",\"\",IF(O1292=1,\"Janvier\",IF(O1292=2,\"Février\",IF(O1292=3,\"Mars\",IF(O1292=4,\"Avril\",IF(O1292=5,\"Mai\",IF(O1292=6,\"Juin\",IF(O1292=7,\"Juillet\",IF(O1292=8,\"Août\",IF(O1292=9,\"Septembre\",IF(O1292=10,\"Octobre\",IF(O1292=11,\"Novembre\",IF(O1292=12,\"Décembre\",\"PB\")))))))))))))","v":""},0]
[null,null,null,null,null,null,null,null,null,null,null,{"$f":"IF(K1293=\"G\",I1293*J1293-J1293,-J1293)","v":0},"","","","",{"$f":"Q1292+L1293","v":0}]
[null,null,null,null,null,null,null,null,null,null,null,0,"","","","",0]
[null,null,null,null,null,null,null,null,null,null,null,0,"","","","",0]
[null,null,null,null,null,null,null,null,null,null,null,0,"","","","",0]
[null,null,null,null,null,null,null,null,null,null,null,0,"","","","",0]
[null,null,null,null,null,null,null,null,null,null,null,0,"","","","",0]
[null,null,null,null,null,null,null,null,null,null,null,0,"","","","",0]
[null,null,null,null,null,null,null,null,null,null,null,0,"","","","",0]
[null,null,null,null,null,null,null,null,null,null,null,0,"","","","",0]
[null,null,null,null,null,null,null,null,null,null,null,0,"","","","",0]
[null,null,null,null,null,null,null,null,null,null,null,0,"","","","",0]
[null,null,null,null,null,null,null,null,null,null,null,0,"","","","",0]
[null,null,null,null,null,null,null,null,null,null,null,0,"","","","",0]
[null,null,null,null,null,null,null,null,null,null,null,0,"","","","",0]
[null,null,null,null,null,null,null,null,null,null,null,0,"","","","",0]
[null,null,null,null,null,null,null,null,null,null,null,0,"","","","",0]
[null,null,null,null,null,null,null,null,null,null,null,0,"","","","",0]
[null,null,null,null,null,null,null,null,null,null,null,0,"","","","",0]
[null,null,null,null,null,null,null,null,null,null,null,0,"","","","",0]
[null,null,null,null,null,null,null,null,null,null,null,0,"","","","",0]
[null,null,null,null,null,null,null,null,null,null,null,0,"","","","",0]
[null,null,null,null,null,null,null,null,null,null,null,0,"","","","",0]
[null,null,null,null,null,null,null,null,null,null,null,0,"","","","",0]
[null,null,null,null,null,null,null,null,null,null,null,0,"","","","",0]
[null,null,null,null,null,null,null,null,null,null,null,0,"","","","",0]
[null,null,null,null,null,null,null,null,null,null,null,0,"","","","",0]
[null,null,null,null,null,null,null,null,null,null,null,0,"","","","",0]
[null,null,null,null,null,null,null,null,null,null,null,0,"","","","",0]
[null,null,null,null,null,null,null,null,null,null,null,0,"","","","",0]
[null,null,null,null,null,null,null,null,null,null,null,0,"","","","",0]
[null,null,null,null,null,null,null,null,null,null,null,0,"","","","",0]
[null,null,null,null,null,null,null,null,null,null,null,0,"","","","",0]
[null,null,null,null,null,null,null,null,null,null,null,0,"","","","",0]
[null,null,null,null,null,null,null,null,null,null,null,0,"","","","",0]
[null,null,null,null,null,null,null,null,null,null,null,0,"","","","",0]
[null,null,null,null,null,null,null,null,null,null,null,0,"","","","",0]
[null,null,null,null,null,null,null,null,null,null,null,0,"","","","",0]
[null,null,null,null,null,null,null,null,null,null,null,0,"","","","",0]
[null,null,null,null,null,null,null,null,null,null,null,0,"","","","",0]
[null,null,null,null,null,null,null,null,null,null,null,0,"","","","",0]
[null,null,null,null,null,null,null,null,null,null,null,0,"","","","",0]
[null,null,null,null,null,null,null,null,null,null,null,0,"","","","",0]
[null,null,null,null,null,null,null,null,null,null,null,0,"","","","",0]
[null,null,null,null,null,null,null,null,null,null,null,0,"","","","",0]
[null,null,null,null,null,null,null,null,null,null,null,0,"","","","",0]
[null,null,null,null,null,null,null,null,null,null,null,0,"","","","",0]
[null,null,null,null,null,null,null,null,null,null,null,0,"","","","",0]
[null,null,null,null,null,null,null,null,null,null,null,0,"","","","",0]
[null,null,null,null,null,null,null,null,null,null,null,0,"","","","",0]
[null,null,null,null,null,null,null,null,null,null,null,0,"","","","",0]
[null,null,null,null,null,null,null,null,null,null,null,0,"","","","",0]
[null,null,null,null,null,null,null,null,null,null,null,0,"","","","",0]
[null,null,null,null,null,null,null,null,null,null,null,0,"","","","",0]
[null,null,null,null,null,null,null,null,null,null,null,0,"","","","",0]
[null,null,null,null,null,null,null,null,null,null,null,0,"","","","",0]
[null,null,null,null,null,null,null,null,null,null,null,0,"","","","",0]
[null,null,null,null,null,null,null,null,null,null,null,0,"","","","",0]
[null,null,null,null,null,null,null,null,null,null,null,0,"","","","",0]
[null,null,null,null,null,null,null,null,null,null,null,0,"","","","",0]
[null,null,null,null,null,null,null,null,null,null,null,0,"","","","",0]
[null,null,null,null,null,null,null,null,null,null,null,0,"","","","",0]
[null,null,null,null,null,null,null,null,null,null,null,0,"","","","",0]
[null,null,null,null,null,null,null,null,null,null,null,0,"","","","",0]
[null,null,null,null,null,null,null,null,null,null,null,0,{"$f":"IF(K1356=\"\",\"\",IF(K1356=\"P\",0,1))","v":""},{"$f":"IF(K1356=\"\",\"\",1)","v":""},{"$f":"IF(A1356=\"\",\"\",MONTH(A1356))","v":""},{"$f":"IF(A1356=\"\",\"\",IF(O1356=1,\"Janvier\",IF(O1356=2,\"Février\",IF(O1356=3,\"Mars\",IF(O1356=4,\"Avril\",IF(O1356=5,\"Mai\",IF(O1356=6,\"Juin\",IF(O1356=7,\"Juillet\",IF(O1356=8,\"Août\",IF(O1356=9,\"Septembre\",IF(O1356=10,\"Octobre\",IF(O1356=11,\"Novembre\",IF(O1356=12,\"Décembre\",\"PB\")))))))))))))","v":""},0]
[null,null,null,null,null,null,null,null,null,null,null,{"$f":"IF(K1357=\"G\",I1357*J1357-J1357,-J1357)","v":0},"","","","",{"$f":"Q1356+L1357","v":0}]
[null,null,null,null,null,null,null,null,null,null,null,0,"","","","",0]
[null,null,null,null,null,null,null,null,null,null,null,0,"","","","",0]
[null,null,null,null,null,null,null,null,null,null,null,0,"","","","",0]
[null,null,null,null,null,null,null,null,null,null,null,0,"","","","",0]
[null,null,null,null,null,null,null,null,null,null,null,0,"","","","",0]
[null,null,null,null,null,null,null,null,null,null,null,0,"","","","",0]
[null,null,null,null,null,null,null,null,null,null,null,0,"","","","",0]
[null,null,null,null,null,null,null,null,null,null,null,0,"","","","",0]
[null,null,null,null,null,null,null,null,null,null,null,0,"","","","",0]
[null,null,null,null,null,null,null,null,null,null,null,0,"","","","",0]
[null,null,null,null,null,null,null,null,null,null,null,0,"","","","",0]
[null,null,null,null,null,null,null,null,null,null,null,0,"","","","",0]
[null,null,null,null,null,null,null,null,null,null,null,0,"","","","",0]
[null,null,null,null,null,null,null,null,null,null,null,0,"","","","",0]
[null,null,null,null,null,null,null,null,null,null,null,0,"","","","",0]
[null,null,null,null,null,null,null,null,null,null,null,0,"","","","",0]
[null,null,null,null,null,null,null,null,null,null,null,0,"","","","",0]
[null,null,null,null,null,null,null,null,null,null,null,0,"","","","",0]
[null,null,null,null,null,null,null,null,null,null,null,0,"","","","",0]
[null,null,null,null,null,null,null,null,null,null,null,0,"","","","",0]
[null,null,null,null,null,null,null,null,null,null,null,0,"","","","",0]
[null,null,null,null,null,null,null,null,null,null,null,0,"","","","",0]
[null,null,null,null,null,null,null,null,null,null,null,0,"","","","",0]
[null,null,null,null,null,null,null,null,null,null,null,0,"","","","",0]
[null,null,null,null,null,null,null,null,null,null,null,0,"","","","",0]
[null,null,null,null,null,null,null,null,null,null,null,0,"","","","",0]
[null,null,null,null,null,null,null,null,null,null,null,0,"","","","",0]
[null,null,null,null,null,null,null,null,null,null,null,0,"","","","",0]
[null,null,null,null,null,null,null,null,null,null,null,0,"","","","",0]
[null,null,null,null,null,null,null,null,null,null,null,0,"","","","",0]
[null,null,null,null,null,null,null,null,null,null,null,0,"","","","",0]
[null,null,null,null,null,null,null,null,null,null,null,0,"","","","",0]
[null,null,null,null,null,null,null,null,null,null,null,0,"","","","",0]
[null,null,null,null,null,null,null,null,null,null,null,0,"","","","",0]
[null,null,null,null,null,null,null,null,null,null,null,0,"","","","",0]
[null,null,null,null,null,null,null,null,null,null,null,0,"","","","",0]
[null,null,null,null,null,null,null,null,null,null,null,0,"","","","",0]
[null,null,null,null,null,null,null,null,null,null,null,0,"","","","",0]
[null,null,null,null,null,null,null,null,null,null,null,0,"","","","",0]
[null,null,null,null,null,null,null,null,null,null,null,0,"","","","",0]
[null,null,null,null,null,null,null,null,null,null,null,0,"","","","",0]
[null,null,null,null,null,null,null,null,null,null,null,0,"","","","",0]
[null,null,null,null,null,null,null,null,null,null,null,0,"","","","",0]
[null,null,null,null,null,null,null,null,null,null,null,0,"","","","",0]
[null,null,null,null,null,null,null,null,null,null,null,0,"","","","",0]
[null,null,null,null,null,null,null,null,null,null,null,0,"","","","",0]
[null,null,null,null,null,null,null,null,null,null,null,0,"","","","",0]
[null,null,null,null,null,null,null,null,null,null,null,0,"","","","",0]
[null,null,null,null,null,null,null,null,null,null,null,0,"","","","",0]
[null,null,null,null,null,null,null,null,null,null,null,0,"","","","",0]
[null,null,null,null,null,null,null,null,null,null,null,0,"","","","",0]
[null,null,null,null,null,null,null,null,null,null,null,0,"","","","",0]
[null,null,null,null,null,null,null,null,null,null,null,0,"","","","",0]
[null,null,null,null,null,null,null,null,null,null,null,0,"","","","",0]
[null,null,null,null,null,null,null,null,null,null,null,0,"","","","",0]
[null,null,null,null,null,null,null,null,null,null,null,0,"","","","",0]
[null,null,null,null,null,null,null,null,null,null,null,0,"","","","",0]
[null,null,null,null,null,null,null,null,null,null,null,0,"","","","",0]
[null,null,null,null,null,null,null,null,null,null,null,0,"","","","",0]
[null,null,null,null,null,null,null,null,null,null,null,0,"","","","",0]
[null,null,null,null,null,null,null,null,null,null,null,0,"","","","",0]
[null,null,null,null,null,null,null,null,null,null,null,0,"","","","",0]
[null,null,null,null,null,null,null,null,null,null,null,0,{"$f":"IF(K1420=\"\",\"\",IF(K1420=\"P\",0,1))","v":""},{"$f":"IF(K1420=\"\",\"\",1)","v":""},{"$f":"IF(A1420=\"\",\"\",MONTH(A1420))","v":""},{"$f":"IF(A1420=\"\",\"\",IF(O1420=1,\"Janvier\",IF(O1420=2,\"Février\",IF(O1420=3,\"Mars\",IF(O1420=4,\"Avril\",IF(O1420=5,\"Mai\",IF(O1420=6,\"Juin\",IF(O1420=7,\"Juillet\",IF(O1420=8,\"Août\",IF(O1420=9,\"Septembre\",IF(O1420=10,\"Octobre\",IF(O1420=11,\"Novembre\",IF(O1420=12,\"Décembre\",\"PB\")))))))))))))","v":""},0]
[null,null,null,null,null,null,null,null,null,null,null,{"$f":"IF(K1421=\"G\",I1421*J1421-J1421,-J1421)","v":0},"","","","",{"$f":"Q1420+L1421","v":0}]
[null,null,null,null,null,null,null,null,null,null,null,0,"","","","",0]
[null,null,null,null,null,null,null,null,null,null,null,0,"","","","",0]
[null,null,null,null,null,null,null,null,null,null,null,0,"","","","",0]
[null,null,null,null,null,null,null,null,null,null,null,0,"","","","",0]
[null,null,null,null,null,null,null,null,null,null,null,0,"","","","",0]
[null,null,null,null,null,null,null,null,null,null,null,0,"","","","",0]
[null,null,null,null,null,null,null,null,null,null,null,0,"","","","",0]
[null,null,null,null,null,null,null,null,null,null,null,0,"","","","",0]
[null,null,null,null,null,null,null,null,null,null,null,0,"","","","",0]
[null,null,null,null,null,null,null,null,null,null,null,0,"","","","",0]
[null,null,null,null,null,null,null,null,null,null,null,0,"","","","",0]
[null,null,null,null,null,null,null,null,null,null,null,0,"","","","",0]
[null,null,null,null,null,null,null,null,null,null,null,0,"","","","",0]
[null,null,null,null,null,null,null,null,null,null,null,0,"","","","",0]
[null,null,null,null,null,null,null,null,null,null,null,0,"","","","",0]
[null,null,null,null,null,null,null,null,null,null,null,0,"","","","",0]
[null,null,null,null,null,null,null,null,null,null,null,0,"","","","",0]
[null,null,null,null,null,null,null,null,null,null,null,0,"","","","",0]
[null,null,null,null,null,null,null,null,null,null,null,0,"","","","",0]
[null,null,null,null,null,null,null,null,null,null,null,0,"","","","",0]
[null,null,null,null,null,null,null,null,null,null,null,0,"","","","",0]
[null,null,null,null,null,null,null,null,null,null,null,0,"","","","",0]
[null,null,null,null,null,null,null,null,null,null,null,0,"","","","",0]
[null,null,null,null,null,null,null,null,null,null,null,0,"","","","",0]
[null,null,null,null,null,null,null,null,null,null,null,0,"","","","",0]
[null,null,null,null,null,null,null,null,null,null,null,0,"","","","",0]
[null,null,null,null,null,null,null,null,null,null,null,0,"","","","",0]
[null,null,null,null,null,null,null,null,null,null,null,0,"","","","",0]
[null,null,null,null,null,null,null,null,null,null,null,0,"","","","",0]
[null,null,null,null,null,null,null,null,null,null,null,0,"","","","",0]
[null,null,null,null,null,null,null,null,null,null,null,0,"","","","",0]
[null,null,null,null,null,null,null,null,null,null,null,0,"","","","",0]
[null,null,null,null,null,null,null,null,null,null,null,0,"","","","",0]
[null,null,null,null,null,null,null,null,null,null,null,0,"","","","",0]
[null,null,null,null,null,null,null,null,null,null,null,0,"","","","",0]
[null,null,null,null,null,null,null,null,null,null,null,0,"","","","",0]
[null,null,null,null,null,null,null,null,null,null,null,0,"","","","",0]
[null,null,null,null,null,null,null,null,null,null,null,0,"","","","",0]
[null,null,null,null,null,null,null,null,null,null,null,0,"","","","",0]
[null,null,null,null,null,null,null,null,null,null,null,0,"","","","",0]
[null,null,null,null,null,null,null,null,null,null,null,0,"","","","",0]
[null,null,null,null,null,null,null,null,null,null,null,0,"","","","",0]
[null,null,null,null,null,null,null,null,null,null,null,0,"","","","",0]
[null,null,null,null,null,null,null,null,null,null,null,0,"","","","",0]
[null,null,null,null,null,null,null,null,null,null,null,0,"","","","",0]
[null,null,null,null,null,null,null,null,null,null,null,0,"","","","",0]
[null,null,null,null,null,null,null,null,null,null,null,0,"","","","",0]
[null,null,null,null,null,null,null,null,null,null,null,0,"","","","",0]
[null,null,null,null,null,null,null,null,null,null,null,0,"","","","",0]
[null,null,null,null,null,null,null,null,null,null,null,0,"","","","",0]
[null,null,null,null,null,null,null,null,null,null,null,0,"","","","",0]
[null,null,null,null,null,null,null,null,null,null,null,0,"","","","",0]
[null,null,null,null,null,null,null,null,null,null,null,0,"","","","",0]
[null,null,null,null,null,null,null,null,null,null,null,0,"","","","",0]
[null,null,null,null,null,null,null,null,null,null,null,0,"","","","",0]
[null,null,null,null,null,null,null,null,null,null,null,0,"","","","",0]
[null,null,null,null,null,null,null,null,null,null,null,0,"","","","",0]
[null,null,null,null,null,null,null,null,null,null,null,0,"","","","",0]
[null,null,null,null,null,null,null,null,null,null,null,0,"","","","",0]
[null,null,null,null,null,null,null,null,null,null,null,0,"","","","",0]
[null,null,null,null,null,null,null,null,null,null,null,0,"","","","",0]
[null,null,null,null,null,null,null,null,null,null,null,0,"","","","",0]
[null,null,null,null,null,null,null,null,null,null,null,0,{"$f":"IF(K1484=\"\",\"\",IF(K1484=\"P\",0,1))","v":""},{"$f":"IF(K1484=\"\",\"\",1)","v":""},{"$f":"IF(A1484=\"\",\"\",MONTH(A1484))","v":""},{"$f":"IF(A1484=\"\",\"\",IF(O1484=1,\"Janvier\",IF(O1484=2,\"Février\",IF(O1484=3,\"Mars\",IF(O1484=4,\"Avril\",IF(O1484=5,\"Mai\",IF(O1484=6,\"Juin\",IF(O1484=7,\"Juillet\",IF(O1484=8,\"Août\",IF(O1484=9,\"Septembre\",IF(O1484=10,\"Octobre\",IF(O1484=11,\"Novembre\",IF(O1484=12,\"Décembre\",\"PB\")))))))))))))","v":""},0]
[null,null,null,null,null,null,null,null,null,null,null,{"$f":"IF(K1485=\"G\",I1485*J1485-J1485,-J1485)","v":0},"","","","",{"$f":"Q1484+L1485","v":0}]
[null,null,null,null,null,null,null,null,null,null,null,0,"","","","",0]
[null,null,null,null,null,null,null,null,null,null,null,0,"","","","",0]
[null,null,null,null,null,null,null,null,null,null,null,0,"","","","",0]
[null,null,null,null,null,null,null,null,null,null,null,0,"","","","",0]
[null,null,null,null,null,null,null,null,null,null,null,0,"","","","",0]
[null,null,null,null,null,null,null,null,null,null,null,0,"","","","",0]
[null,null,null,null,null,null,null,null,null,null,null,0,"","","","",0]
[null,null,null,null,null,null,null,null,null,null,null,0,"","","","",0]
[null,null,null,null,null,null,null,null,null,null,null,0,"","","","",0]
[null,null,null,null,null,null,null,null,null,null,null,0,"","","","",0]
[null,null,null,null,null,null,null,null,null,null,null,0,"","","","",0]
[null,null,null,null,null,null,null,null,null,null,null,0,"","","","",0]
[null,null,null,null,null,null,null,null,null,null,null,0,"","","","",0]
[null,null,null,null,null,null,null,null,null,null,null,0,"","","","",0]
[null,null,null,null,null,null,null,null,null,null,null,0,"","","","",0]
[null,null,null,null,null,null,null,null,null,null,null,0,"","","","",0]
[null,null,null,null,null,null,null,null,null,null,null,0,"","","","",0]
[null,null,null,null,null,null,null,null,null,null,null,0,"","","","",0]
[null,null,null,null,null,null,null,null,null,null,null,0,"","","","",0]
[null,null,null,null,null,null,null,null,null,null,null,0,"","","","",0]
[null,null,null,null,null,null,null,null,null,null,null,0,"","","","",0]
[null,null,null,null,null,null,null,null,null,null,null,0,"","","","",0]
[null,null,null,null,null,null,null,null,null,null,null,0,"","","","",0]
[null,null,null,null,null,null,null,null,null,null,null,0,"","","","",0]
[null,null,null,null,null,null,null,null,null,null,null,0,"","","","",0]
[null,null,null,null,null,null,null,null,null,null,null,0,"","","","",0]
[null,null,null,null,null,null,null,null,null,null,null,0,"","","","",0]
[null,null,null,null,null,null,null,null,null,null,null,0,"","","","",0]
[null,null,null,null,null,null,null,null,null,null,null,0,"","","","",0]
[null,null,null,null,null,null,null,null,null,null,null,0,"","","","",0]
[null,null,null,null,null,null,null,null,null,null,null,0,"","","","",0]
[null,null,null,null,null,null,null,null,null,null,null,0,"","","","",0]
[null,null,null,null,null,null,null,null,null,null,null,0,"","","","",0]
[null,null,null,null,null,null,null,null,null,null,null,0,"","","","",0]
[null,null,null,null,null,null,null,null,null,null,null,0,"","","","",0]
[null,null,null,null,null,null,null,null,null,null,null,0,"","","","",0]
[null,null,null,null,null,null,null,null,null,null,null,0,"","","","",0]
[null,null,null,null,null,null,null,null,null,null,null,0,"","","","",0]
[null,null,null,null,null,null,null,null,null,null,null,0,"","","","",0]
[null,null,null,null,null,null,null,null,null,null,null,0,"","","","",0]
[null,null,null,null,null,null,null,null,null,null,null,0,"","","","",0]
[null,null,null,null,null,null,null,null,null,null,null,0,"","","","",0]
[null,null,null,null,null,null,null,null,null,null,null,0,"","","","",0]
[null,null,null,null,null,null,null,null,null,null,null,0,"","","","",0]
[null,null,null,null,null,null,null,null,null,null,null,0,"","","","",0]
[null,null,null,null,null,null,null,null,null,null,null,0,"","","","",0]
[null,null,null,null,null,null,null,null,null,null,null,0,"","","","",0]

{"sheet":"Stats par Sports","index":2,"n_rows":5,"n_cols":6,"rows_kept":5,"cut":false,"hidden":false,"merged":[]}
[]
[]
["Étiquettes de lignes","Mises","Nombre de pronos","Gains/Pertes","R.O.I","% Réussite"]
["(vide)",null,0,0,{"$error":"#DIV/0!"},{"$error":"#DIV/0!"}]
["Total général",null,0,0,{"$error":"#DIV/0!"},{"$error":"#DIV/0!"}]

{"sheet":"Stats par Tipsters","index":3,"n_rows":5,"n_cols":6,"rows_kept":5,"cut":false,"hidden":false,"merged":[]}
[]
[]
["Étiquettes de lignes","Mises","Nombre de pronos","Gains/Pertes","R.O.I","% Réussite"]
["(vide)",null,0,0,{"$error":"#DIV/0!"},{"$error":"#DIV/0!"}]
["Total général",null,0,0,{"$error":"#DIV/0!"},{"$error":"#DIV/0!"}]

{"sheet":"Stats par Bookmaker","index":4,"n_rows":5,"n_cols":6,"rows_kept":5,"cut":false,"hidden":false,"merged":[]}
[]
[]
["Étiquettes de lignes","Mises","Nombre de pronos","Gains/Pertes","R.O.I","% Réussite"]
["(vide)",null,0,0,{"$error":"#DIV/0!"},{"$error":"#DIV/0!"}]
["Total général",null,0,0,{"$error":"#DIV/0!"},{"$error":"#DIV/0!"}]